Workbook

Sheet exponlognor
A1: lognor | B1: expon | D1: lognormal | E1: exponential | F1: Pareto 1 | G1: Superfat | V1: Hit ESCAPE to stop
A2: =EXP(NORMSINV(RAND())) -> 1.053103576 | B2: =-LN(RAND())/0.606531 -> 3.025833879 | C2: 1 | D2: =AVERAGE(A$2:A2) -> 1.053103576 | E2: =AVERAGE(B$2:B2) -> 3.025833879 | F2: =RAND()^(-1) -> 1.86835892 | G2: =AVERAGE(F$2:F2) -> 1.86835892
A3: 3.604295489 | B3: =-LN(RAND())/0.606531 -> 11.02758672 | C3: 2 | D3: =AVERAGE(A$2:A3) -> 2.328699533 | E3: =AVERAGE(B$2:B3) -> 7.026710301 | F3: =RAND()^(-1) -> 1.045376772 | G3: =AVERAGE(F$2:F3) -> 1.456867846
A4: 3.565414141 | B4: 3.462192936 | C4: 3 | D4: =AVERAGE(A$2:A4) -> 2.740937735 | E4: =AVERAGE(B$2:B4) -> 5.838537846 | F4: 14.71674394 | G4: =AVERAGE(F$2:F4) -> 5.876826544
A5: 3.567161718 | B5: 2.330701093 | C5: 4 | D5: =AVERAGE(A$2:A5) -> 2.947493731 | E5: =AVERAGE(B$2:B5) -> 4.961578658 | F5: 1.527964262 | G5: =AVERAGE(F$2:F5) -> 4.789610974
A6: 12.66149904 | B6: 5.454677472 | C6: 5 | D6: =AVERAGE(A$2:A6) -> 4.890294794 | E6: =AVERAGE(B$2:B6) -> 5.06019842 | F6: 2.776087475 | G6: =AVERAGE(F$2:F6) -> 4.386906274
A7: 1.901539671 | B7: 1.210773276 | C7: 6 | D7: =AVERAGE(A$2:A7) -> 4.39216894 | E7: =AVERAGE(B$2:B7) -> 4.418627563 | F7: 3.2210645 | G7: =AVERAGE(F$2:F7) -> 4.192599312
A8: 1.45592327 | B8: 3.49654652 | C8: 7 | D8: =AVERAGE(A$2:A8) -> 3.972705273 | E8: =AVERAGE(B$2:B8) -> 4.2869017 | F8: 1.697633752 | G8: =AVERAGE(F$2:F8) -> 3.83617566
A9: 0.2859355512 | B9: 0.7076828993 | C9: 8 | D9: =AVERAGE(A$2:A9) -> 3.511859058 | E9: =AVERAGE(B$2:B9) -> 3.83949935 | F9: 31.73361205 | G9: =AVERAGE(F$2:F9) -> 7.323355208
A10: 1.10755101 | B10: 2.160027083 | C10: 9 | D10: =AVERAGE(A$2:A10) -> 3.244713719 | E10: =AVERAGE(B$2:B10) -> 3.65289132 | F10: 1.971045454 | G10: =AVERAGE(F$2:F10) -> 6.728654125
A11: 0.5569734528 | B11: 3.428828017 | C11: 10 | D11: =AVERAGE(A$2:A11) -> 2.975939692 | E11: =AVERAGE(B$2:B11) -> 3.63048499 | F11: 5.456616516 | G11: =AVERAGE(F$2:F11) -> 6.601450364
A12: 1.239464236 | B12: 1.921646184 | C12: 11 | D12: =AVERAGE(A$2:A12) -> 2.818078287 | E12: =AVERAGE(B$2:B12) -> 3.475136007 | F12: 1.40118638 | G12: =AVERAGE(F$2:F12) -> 6.128699093
A13: 0.8171210914 | B13: 0.5707140053 | C13: 12 | D13: =AVERAGE(A$2:A13) -> 2.651331854 | E13: =AVERAGE(B$2:B13) -> 3.233100841 | F13: 1.273617985 | G13: =AVERAGE(F$2:F13) -> 5.724109
A14: 0.7959074976 | B14: 1.599931838 | C14: 13 | D14: =AVERAGE(A$2:A14) -> 2.508606904 | E14: =AVERAGE(B$2:B14) -> 3.107472456 | F14: 2.18578624 | G14: =AVERAGE(F$2:F14) -> 5.451930326
A15: 0.3425885452 | B15: 5.58005075 | C15: 14 | D15: =AVERAGE(A$2:A15) -> 2.353891307 | E15: =AVERAGE(B$2:B15) -> 3.284085191 | F15: 1.700275887 | G15: =AVERAGE(F$2:F15) -> 5.183955009
A16: 0.1142772758 | B16: 0.9269993863 | C16: 15 | D16: =AVERAGE(A$2:A16) -> 2.204583705 | E16: =AVERAGE(B$2:B16) -> 3.126946137 | F16: 3.453904952 | G16: =AVERAGE(F$2:F16) -> 5.068618339
A17: 0.1519704371 | B17: 0.2318181314 | C17: 16 | D17: =AVERAGE(A$2:A17) -> 2.076295375 | E17: =AVERAGE(B$2:B17) -> 2.946000637 | F17: 1.723726466 | G17: =AVERAGE(F$2:F17) -> 4.859562597
A18: 0.7840629368 | B18: 4.856885487 | C18: 17 | D18: =AVERAGE(A$2:A18) -> 2.000281703 | E18: =AVERAGE(B$2:B18) -> 3.058405628 | F18: 21.65779257 | G18: =AVERAGE(F$2:F18) -> 5.847693772
A19: 2.218650279 | B19: 1.06831094 | C19: 18 | D19: =AVERAGE(A$2:A19) -> 2.01241329 | E19: =AVERAGE(B$2:B19) -> 2.947844812 | F19: 1.819917723 | G19: =AVERAGE(F$2:F19) -> 5.623928436
A20: 0.7343142273 | B20: 0.2474621913 | C20: 19 | D20: =AVERAGE(A$2:A20) -> 1.945144918 | E20: =AVERAGE(B$2:B20) -> 2.805719411 | F20: 10.2686009 | G20: =AVERAGE(F$2:F20) -> 5.868384881
A21: 1.459010437 | B21: 1.043248849 | C21: 20 | D21: =AVERAGE(A$2:A21) -> 1.920838194 | E21: =AVERAGE(B$2:B21) -> 2.717595883 | F21: 3.705651531 | G21: =AVERAGE(F$2:F21) -> 5.760248214
A22: 0.9569730035 | B22: 9.652300589 | C22: 21 | D22: =AVERAGE(A$2:A22) -> 1.874939852 | E22: =AVERAGE(B$2:B22) -> 3.047819917 | F22: 3.222702235 | G22: =AVERAGE(F$2:F22) -> 5.639412691
A23: 2.304091161 | B23: 0.2658165125 | C23: 22 | D23: =AVERAGE(A$2:A23) -> 1.89444673 | E23: =AVERAGE(B$2:B23) -> 2.921365216 | F23: 2.159481909 | G23: =AVERAGE(F$2:F23) -> 5.481234019
A24: 0.8048567912 | B24: 0.2531366221 | C24: 23 | D24: =AVERAGE(A$2:A24) -> 1.847073254 | E24: =AVERAGE(B$2:B24) -> 2.805355278 | F24: 4.157178462 | G24: =AVERAGE(F$2:F24) -> 5.423666386
A25: 1.534918184 | B25: 5.917999023 | C25: 24 | D25: =AVERAGE(A$2:A25) -> 1.834066793 | E25: =AVERAGE(B$2:B25) -> 2.935048767 | F25: 1.410315758 | G25: =AVERAGE(F$2:F25) -> 5.256443443
A26: 0.3517897548 | B26: 0.8533825301 | C26: 25 | D26: =AVERAGE(A$2:A26) -> 1.774775711 | E26: =AVERAGE(B$2:B26) -> 2.851782117 | F26: 2.64710449 | G26: =AVERAGE(F$2:F26) -> 5.152069885
A27: 1.115245448 | B27: 1.272869573 | C27: 26 | D27: =AVERAGE(A$2:A27) -> 1.749409163 | E27: =AVERAGE(B$2:B27) -> 2.791054712 | F27: 20.3999919 | G27: =AVERAGE(F$2:F27) -> 5.738528424
A28: 1.562363767 | B28: 2.380186765 | C28: 27 | D28: =AVERAGE(A$2:A28) -> 1.742481555 | E28: =AVERAGE(B$2:B28) -> 2.775837381 | F28: 1.847046917 | G28: =AVERAGE(F$2:F28) -> 5.594399479
A29: 9.405997882 | B29: 0.6510556706 | C29: 28 | D29: =AVERAGE(A$2:A29) -> 2.016178567 | E29: =AVERAGE(B$2:B29) -> 2.699952319 | F29: 1.507716632 | G29: =AVERAGE(F$2:F29) -> 5.44844652
A30: 0.41454215 | B30: 0.5191452574 | C30: 29 | D30: =AVERAGE(A$2:A30) -> 1.960949725 | E30: =AVERAGE(B$2:B30) -> 2.624752076 | F30: 1.174437758 | G30: =AVERAGE(F$2:F30) -> 5.301066908
A31: 0.6033091592 | B31: 3.074241169 | C31: 30 | D31: =AVERAGE(A$2:A31) -> 1.91569504 | E31: =AVERAGE(B$2:B31) -> 2.639735046 | F31: 1.81418708 | G31: =AVERAGE(F$2:F31) -> 5.18483758
A32: 0.4280533654 | B32: 0.1547997307 | C32: 31 | D32: =AVERAGE(A$2:A32) -> 1.867706599 | E32: =AVERAGE(B$2:B32) -> 2.559575842 | F32: 1.048264191 | G32: =AVERAGE(F$2:F32) -> 5.051399729
A33: 2.099615479 | B33: 0.3178066427 | C33: 32 | D33: =AVERAGE(A$2:A33) -> 1.874953751 | E33: =AVERAGE(B$2:B33) -> 2.489520555 | F33: 1.730767074 | G33: =AVERAGE(F$2:F33) -> 4.947629959
A34: 0.5623975233 | B34: 1.127651068 | C34: 33 | D34: =AVERAGE(A$2:A34) -> 1.83517932 | E34: =AVERAGE(B$2:B34) -> 2.448251782 | F34: 1.328852642 | G34: =AVERAGE(F$2:F34) -> 4.83797004
A35: 2.485350958 | B35: 1.661693859 | C35: 34 | D35: =AVERAGE(A$2:A35) -> 1.854302015 | E35: =AVERAGE(B$2:B35) -> 2.425117726 | F35: 1.302113096 | G35: =AVERAGE(F$2:F35) -> 4.733974247
A36: 0.6263396083 | B36: 2.547890689 | C36: 35 | D36: =AVERAGE(A$2:A36) -> 1.819217375 | E36: =AVERAGE(B$2:B36) -> 2.428625525 | F36: 1.093526861 | G36: =AVERAGE(F$2:F36) -> 4.629961465 | P36: Draw 2000 samples and compute successive averages
A37: 0.3875706419 | B37: 1.03445085 | C37: 36 | D37: =AVERAGE(A$2:A37) -> 1.77944941 | E37: =AVERAGE(B$2:B37) -> 2.38989845 | F37: 5.869227216 | G37: =AVERAGE(F$2:F37) -> 4.664385514
A38: 0.3068679462 | B38: 1.05158193 | C38: 37 | D38: =AVERAGE(A$2:A38) -> 1.739649911 | E38: =AVERAGE(B$2:B38) -> 2.353727734 | F38: 2.013309004 | G38: =AVERAGE(F$2:F38) -> 4.592734797
A39: 0.2519708269 | B39: 2.508199498 | C39: 38 | D39: =AVERAGE(A$2:A39) -> 1.700500462 | E39: =AVERAGE(B$2:B39) -> 2.35779278 | F39: 1.059723553 | G39: =AVERAGE(F$2:F39) -> 4.499760817
A40: 0.8543304406 | B40: 1.770036087 | C40: 39 | D40: =AVERAGE(A$2:A40) -> 1.678803794 | E40: =AVERAGE(B$2:B40) -> 2.342722096 | F40: 1.394937461 | G40: =AVERAGE(F$2:F40) -> 4.420149962
A41: 0.6450035914 | B41: 0.03451678491 | C41: 40 | D41: =AVERAGE(A$2:A41) -> 1.652958789 | E41: =AVERAGE(B$2:B41) -> 2.285016963 | F41: 1.232177641 | G41: =AVERAGE(F$2:F41) -> 4.340450654
A42: 2.28248528 | B42: 0.2003059264 | C42: 41 | D42: =AVERAGE(A$2:A42) -> 1.668313094 | E42: =AVERAGE(B$2:B42) -> 2.234170352 | F42: 2.116624722 | G42: =AVERAGE(F$2:F42) -> 4.286210997
A43: 0.802075066 | B43: 1.096068499 | C43: 42 | D43: =AVERAGE(A$2:A43) -> 1.647688379 | E43: =AVERAGE(B$2:B43) -> 2.207072689 | F43: 9.276913459 | G43: =AVERAGE(F$2:F43) -> 4.405037246
A44: 3.340994501 | B44: 0.0729224519 | C44: 43 | D44: =AVERAGE(A$2:A44) -> 1.687067591 | E44: =AVERAGE(B$2:B44) -> 2.157441288 | F44: 1.019343059 | G44: =AVERAGE(F$2:F44) -> 4.326300172
A45: 0.3222055252 | B45: 0.8925092901 | C45: 44 | D45: =AVERAGE(A$2:A45) -> 1.656047999 | E45: =AVERAGE(B$2:B45) -> 2.128692834 | F45: 1.407368945 | G45: =AVERAGE(F$2:F45) -> 4.259960826
A46: 0.4731035569 | B46: 1.673587108 | C46: 45 | D46: =AVERAGE(A$2:A46) -> 1.629760344 | E46: =AVERAGE(B$2:B46) -> 2.118579373 | F46: 8.506212398 | G46: =AVERAGE(F$2:F46) -> 4.354321972
A47: 14.38693267 | B47: 3.369263343 | C47: 46 | D47: =AVERAGE(A$2:A47) -> 1.907090177 | E47: =AVERAGE(B$2:B47) -> 2.145768155 | F47: 5.053130372 | G47: =AVERAGE(F$2:F47) -> 4.369513459
A48: 1.017963976 | B48: 4.40886738 | C48: 47 | D48: =AVERAGE(A$2:A48) -> 1.888172599 | E48: =AVERAGE(B$2:B48) -> 2.193919202 | F48: 3.327314795 | G48: =AVERAGE(F$2:F48) -> 4.347339019
A49: 1.339397927 | B49: 2.356384278 | C49: 48 | D49: =AVERAGE(A$2:A49) -> 1.876739793 | E49: =AVERAGE(B$2:B49) -> 2.197303891 | F49: 3.484620389 | G49: =AVERAGE(F$2:F49) -> 4.329365714
A50: 0.8129135357 | B50: 0.03135008529 | C50: 49 | D50: =AVERAGE(A$2:A50) -> 1.855029053 | E50: =AVERAGE(B$2:B50) -> 2.153100753 | F50: 24.72560286 | G50: =AVERAGE(F$2:F50) -> 4.745615452
A51: 5.625744605 | B51: 0.6207460381 | C51: 50 | D51: =AVERAGE(A$2:A51) -> 1.930443364 | E51: =AVERAGE(B$2:B51) -> 2.122453658 | F51: 2.328491594 | G51: =AVERAGE(F$2:F51) -> 4.697272975
A52: 2.658157923 | B52: 2.248583233 | C52: 51 | D52: =AVERAGE(A$2:A52) -> 1.944712277 | E52: =AVERAGE(B$2:B52) -> 2.124926787 | F52: 6.934514051 | G52: =AVERAGE(F$2:F52) -> 4.741140447
A53: 1.494793591 | B53: 0.5903504218 | C53: 52 | D53: =AVERAGE(A$2:A53) -> 1.936059995 | E53: =AVERAGE(B$2:B53) -> 2.095415703 | F53: 3.034557961 | G53: =AVERAGE(F$2:F53) -> 4.708321553
A54: 1.008526088 | B54: 4.306226475 | C54: 53 | D54: =AVERAGE(A$2:A54) -> 1.918559355 | E54: =AVERAGE(B$2:B54) -> 2.137129114 | F54: 1.674649314 | G54: =AVERAGE(F$2:F54) -> 4.651082454
A55: 3.092943819 | B55: 2.684612349 | C55: 54 | D55: =AVERAGE(A$2:A55) -> 1.940307215 | E55: =AVERAGE(B$2:B55) -> 2.147267692 | F55: 1.048467523 | G55: =AVERAGE(F$2:F55) -> 4.584367363
A56: 1.32839345 | B56: 0.7522892111 | C56: 55 | D56: =AVERAGE(A$2:A56) -> 1.929181511 | E56: =AVERAGE(B$2:B56) -> 2.121904447 | F56: 1.036623341 | G56: =AVERAGE(F$2:F56) -> 4.519862926
A57: 0.8825213585 | B57: 1.26690134 | C57: 56 | D57: =AVERAGE(A$2:A57) -> 1.910491151 | E57: =AVERAGE(B$2:B57) -> 2.106636535 | F57: 2.37654992 | G57: =AVERAGE(F$2:F57) -> 4.48158948
A58: 0.5535417853 | B58: 0.3295919685 | C58: 57 | D58: =AVERAGE(A$2:A58) -> 1.886685021 | E58: =AVERAGE(B$2:B58) -> 2.075460314 | F58: 11.52036872 | G58: =AVERAGE(F$2:F58) -> 4.605076835
A59: 1.602686316 | B59: 2.160750248 | C59: 58 | D59: =AVERAGE(A$2:A59) -> 1.881788492 | E59: =AVERAGE(B$2:B59) -> 2.07693083 | F59: 1.782004489 | G59: =AVERAGE(F$2:F59) -> 4.556403173
A60: 2.190455573 | B60: 0.1821690905 | C60: 59 | D60: =AVERAGE(A$2:A60) -> 1.887020137 | E60: =AVERAGE(B$2:B60) -> 2.044816225 | F60: 1.514611798 | G60: =AVERAGE(F$2:F60) -> 4.504847387
A61: 0.6965126164 | B61: 0.588048028 | C61: 60 | D61: =AVERAGE(A$2:A61) -> 1.867178345 | E61: =AVERAGE(B$2:B61) -> 2.020536755 | F61: 7.353258401 | G61: =AVERAGE(F$2:F61) -> 4.552320904
A62: 0.7797888115 | B62: 4.522741086 | C62: 61 | D62: =AVERAGE(A$2:A62) -> 1.849352288 | E62: =AVERAGE(B$2:B62) -> 2.061556498 | F62: 1.696690155 | G62: =AVERAGE(F$2:F62) -> 4.505507285
A63: 1.896593265 | B63: 0.1962601981 | C63: 62 | D63: =AVERAGE(A$2:A63) -> 1.850114239 | E63: =AVERAGE(B$2:B63) -> 2.031471074 | F63: 4.048215175 | G63: =AVERAGE(F$2:F63) -> 4.498131606
A64: 6.467393346 | B64: 0.8041717949 | C64: 63 | D64: =AVERAGE(A$2:A64) -> 1.923404383 | E64: =AVERAGE(B$2:B64) -> 2.011990133 | F64: 4.11425594 | G64: =AVERAGE(F$2:F64) -> 4.492038342
A65: 1.752010373 | B65: 3.457100594 | C65: 64 | D65: =AVERAGE(A$2:A65) -> 1.920726352 | E65: =AVERAGE(B$2:B65) -> 2.034569984 | F65: 6.968283855 | G65: =AVERAGE(F$2:F65) -> 4.530729678
A66: =EXP(NORMSINV(RAND())) -> 2.526630781 | B66: 2.551348551 | C66: 65 | D66: =AVERAGE(A$2:A66) -> 1.930047959 | E66: =AVERAGE(B$2:B66) -> 2.042520423 | F66: 1.021488212 | G66: =AVERAGE(F$2:F66) -> 4.476741348
A67: 2.178520052 | B67: =-LN(RAND())/0.606531 -> 0.2054638821 | C67: 66 | D67: =AVERAGE(A$2:A67) -> 1.933812687 | E67: =AVERAGE(B$2:B67) -> 2.014686233 | F67: =RAND()^(-1) -> 1.540582568 | G67: =AVERAGE(F$2:F67) -> 4.432254093
A68: 10.224591 | B68: 0.4585879744 | C68: 67 | D68: =AVERAGE(A$2:A68) -> 2.057555647 | E68: =AVERAGE(B$2:B68) -> 1.991460886 | F68: 3.089944244 | G68: =AVERAGE(F$2:F68) -> 4.412219618
A69: 1.851279535 | B69: 0.980912423 | C69: 68 | D69: =AVERAGE(A$2:A69) -> 2.054522175 | E69: =AVERAGE(B$2:B69) -> 1.976599879 | F69: 1.127432981 | G69: =AVERAGE(F$2:F69) -> 4.363913932
A70: 0.6140376002 | B70: 0.3985674653 | C70: 69 | D70: =AVERAGE(A$2:A70) -> 2.033645587 | E70: =AVERAGE(B$2:B70) -> 1.953729844 | F70: 3.025923657 | G70: =AVERAGE(F$2:F70) -> 4.344522769
A71: 0.9451708513 | B71: 1.048157584 | C71: 70 | D71: =AVERAGE(A$2:A71) -> 2.018095948 | E71: =AVERAGE(B$2:B71) -> 1.940793098 | F71: 1.154045829 | G71: =AVERAGE(F$2:F71) -> 4.298944527
A72: 5.171157034 | B72: 0.6288971925 | C72: 71 | D72: =AVERAGE(A$2:A72) -> 2.062505259 | E72: =AVERAGE(B$2:B72) -> 1.92231569 | F72: 1.744116045 | G72: =AVERAGE(F$2:F72) -> 4.262961027
A73: 0.568275306 | B73: 0.02630049859 | C73: 72 | D73: =AVERAGE(A$2:A73) -> 2.041752065 | E73: =AVERAGE(B$2:B73) -> 1.895982146 | F73: 1.113982222 | G73: =AVERAGE(F$2:F73) -> 4.21922521
A74: 0.9314211136 | B74: 0.776865225 | C74: 73 | D74: =AVERAGE(A$2:A74) -> 2.026542052 | E74: =AVERAGE(B$2:B74) -> 1.880651777 | F74: 3.783247409 | G74: =AVERAGE(F$2:F74) -> 4.213252912
A75: 1.058247121 | B75: 0.5826760783 | C75: 74 | D75: =AVERAGE(A$2:A75) -> 2.013456985 | E75: =AVERAGE(B$2:B75) -> 1.863111565 | F75: 1.173346323 | G75: =AVERAGE(F$2:F75) -> 4.172173093
A76: 5.201795234 | B76: 4.861500225 | C76: 75 | D76: =AVERAGE(A$2:A76) -> 2.055968162 | E76: =AVERAGE(B$2:B76) -> 1.903090081 | F76: 8.032482899 | G76: =AVERAGE(F$2:F76) -> 4.22364389
A77: 1.044979125 | B77: 2.399036718 | C77: 76 | D77: =AVERAGE(A$2:A77) -> 2.042665675 | E77: =AVERAGE(B$2:B77) -> 1.909615694 | F77: 1.33100336 | G77: =AVERAGE(F$2:F77) -> 4.185582831
A78: 2.201305937 | B78: 0.2888503205 | C78: 77 | D78: =AVERAGE(A$2:A78) -> 2.044725938 | E78: =AVERAGE(B$2:B78) -> 1.888566793 | F78: 1.219786142 | G78: =AVERAGE(F$2:F78) -> 4.147065991
A79: 0.696554572 | B79: 3.847456822 | C79: 78 | D79: =AVERAGE(A$2:A79) -> 2.02744169 | E79: =AVERAGE(B$2:B79) -> 1.913680768 | F79: 12.42907443 | G79: =AVERAGE(F$2:F79) -> 4.253245586
A80: 0.4566605532 | B80: 4.914768156 | C80: 79 | D80: =AVERAGE(A$2:A80) -> 2.007558384 | E80: =AVERAGE(B$2:B80) -> 1.951669216 | F80: 1.02182495 | G80: =AVERAGE(F$2:F80) -> 4.212341527
A81: 2.013299375 | B81: 2.127711155 | C81: 80 | D81: =AVERAGE(A$2:A81) -> 2.007630146 | E81: =AVERAGE(B$2:B81) -> 1.95386974 | F81: 1.180152192 | G81: =AVERAGE(F$2:F81) -> 4.174439161
A82: 6.512371216 | B82: 1.516625598 | C82: 81 | D82: =AVERAGE(A$2:A82) -> 2.063244234 | E82: =AVERAGE(B$2:B82) -> 1.948471664 | F82: 1.616717674 | G82: =AVERAGE(F$2:F82) -> 4.142862352
A83: 1.106940271 | B83: 0.9226454964 | C83: 82 | D83: =AVERAGE(A$2:A83) -> 2.05158199 | E83: =AVERAGE(B$2:B83) -> 1.935961589 | F83: 2.58226235 | G83: =AVERAGE(F$2:F83) -> 4.123830645
A84: 0.7107108078 | B84: 0.04108914676 | C84: 83 | D84: =AVERAGE(A$2:A84) -> 2.035426916 | E84: =AVERAGE(B$2:B84) -> 1.913131801 | F84: 1.152824152 | G84: =AVERAGE(F$2:F84) -> 4.088035386
A85: 0.4935277781 | B85: 2.336754674 | C85: 84 | D85: =AVERAGE(A$2:A85) -> 2.017070974 | E85: =AVERAGE(B$2:B85) -> 1.91817493 | F85: 28.78964033 | G85: =AVERAGE(F$2:F85) -> 4.382102111
A86: 2.011413702 | B86: 1.075289015 | C86: 85 | D86: =AVERAGE(A$2:A86) -> 2.017004418 | E86: =AVERAGE(B$2:B86) -> 1.908258625 | F86: 4.985255521 | G86: =AVERAGE(F$2:F86) -> 4.389198034
A87: 1.307330706 | B87: 1.652880315 | C87: 86 | D87: =AVERAGE(A$2:A87) -> 2.008752398 | E87: =AVERAGE(B$2:B87) -> 1.90528911 | F87: 4.232030908 | G87: =AVERAGE(F$2:F87) -> 4.387370509
A88: 0.4182219754 | B88: 0.2130631095 | C88: 87 | D88: =AVERAGE(A$2:A88) -> 1.990470439 | E88: =AVERAGE(B$2:B88) -> 1.885838236 | F88: 12.19890573 | G88: =AVERAGE(F$2:F88) -> 4.47715827
A89: 0.154574688 | B89: 0.7444830297 | C89: 88 | D89: =AVERAGE(A$2:A89) -> 1.969607987 | E89: =AVERAGE(B$2:B89) -> 1.872868291 | F89: 3.899845866 | G89: =AVERAGE(F$2:F89) -> 4.470597902
A90: 1.459932179 | B90: 0.5015153947 | C90: 89 | D90: =AVERAGE(A$2:A90) -> 1.963881293 | E90: =AVERAGE(B$2:B90) -> 1.857459831 | F90: 4.358884609 | G90: =AVERAGE(F$2:F90) -> 4.469342696
A91: 0.4558868092 | B91: 3.089571075 | C91: 90 | D91: =AVERAGE(A$2:A91) -> 1.947125798 | E91: =AVERAGE(B$2:B91) -> 1.871149956 | F91: 1.397654277 | G91: =AVERAGE(F$2:F91) -> 4.435212825
A92: 0.1596744928 | B92: 0.336367083 | C92: 91 | D92: =AVERAGE(A$2:A92) -> 1.927483476 | E92: =AVERAGE(B$2:B92) -> 1.854284211 | F92: 1.906617354 | G92: =AVERAGE(F$2:F92) -> 4.407426062
A93: 1.185952816 | B93: 1.814091402 | C93: 92 | D93: =AVERAGE(A$2:A93) -> 1.91942336 | E93: =AVERAGE(B$2:B93) -> 1.853847332 | F93: 3.756920743 | G93: =AVERAGE(F$2:F93) -> 4.400355352
A94: 0.2849137724 | B94: 0.1761292944 | C94: 93 | D94: =AVERAGE(A$2:A94) -> 1.901847988 | E94: =AVERAGE(B$2:B94) -> 1.835807353 | F94: 1.656184008 | G94: =AVERAGE(F$2:F94) -> 4.370848133
A95: 0.4573935301 | B95: 1.694770903 | C95: 94 | D95: =AVERAGE(A$2:A95) -> 1.886481452 | E95: =AVERAGE(B$2:B95) -> 1.834306965 | F95: 2.421733274 | G95: =AVERAGE(F$2:F95) -> 4.350112868
A96: 1.668501611 | B96: 0.04103137094 | C96: 95 | D96: =AVERAGE(A$2:A96) -> 1.884186927 | E96: =AVERAGE(B$2:B96) -> 1.81543038 | F96: 1.045669106 | G96: =AVERAGE(F$2:F96) -> 4.31532925
A97: 0.5452447171 | B97: 3.538429399 | C97: 96 | D97: =AVERAGE(A$2:A97) -> 1.870239612 | E97: =AVERAGE(B$2:B97) -> 1.833378287 | F97: 5.894373368 | G97: =AVERAGE(F$2:F97) -> 4.331777626
A98: 1.27181028 | B98: 0.6447163117 | C98: 97 | D98: =AVERAGE(A$2:A98) -> 1.864070238 | E98: =AVERAGE(B$2:B98) -> 1.82112404 | F98: 2.672046313 | G98: =AVERAGE(F$2:F98) -> 4.314666994
A99: 0.4588518908 | B99: 0.03364716579 | C99: 98 | D99: =AVERAGE(A$2:A99) -> 1.849731275 | E99: =AVERAGE(B$2:B99) -> 1.80288448 | F99: 15.92092958 | G99: =AVERAGE(F$2:F99) -> 4.433098245
A100: 6.219309491 | B100: 0.3361292696 | C100: 99 | D100: =AVERAGE(A$2:A100) -> 1.893868429 | E100: =AVERAGE(B$2:B100) -> 1.78806877 | F100: 1.11429187 | G100: =AVERAGE(F$2:F100) -> 4.399574948
A101: 0.204803307 | B101: 0.9935078959 | C101: 100 | D101: =AVERAGE(A$2:A101) -> 1.876977778 | E101: =AVERAGE(B$2:B101) -> 1.780123162 | F101: 1.030754086 | G101: =AVERAGE(F$2:F101) -> 4.36588674
A102: 0.704100759 | B102: 0.2941594255 | C102: 101 | D102: =AVERAGE(A$2:A102) -> 1.865365134 | E102: =AVERAGE(B$2:B102) -> 1.765410649 | F102: 17.61539115 | G102: =AVERAGE(F$2:F102) -> 4.497069952
A103: 5.593973826 | B103: 0.7162130017 | C103: 102 | D103: =AVERAGE(A$2:A103) -> 1.901920121 | E103: =AVERAGE(B$2:B103) -> 1.755124398 | F103: 2.6175005 | G103: =AVERAGE(F$2:F103) -> 4.4786428
A104: 1.112546476 | B104: 1.367555626 | C104: 103 | D104: =AVERAGE(A$2:A104) -> 1.894256299 | E104: =AVERAGE(B$2:B104) -> 1.751361594 | F104: 1.03408671 | G104: =AVERAGE(F$2:F104) -> 4.445200508
A105: 5.291872202 | B105: 4.228032014 | C105: 104 | D105: =AVERAGE(A$2:A105) -> 1.926925683 | E105: =AVERAGE(B$2:B105) -> 1.775175733 | F105: 3.606575848 | G105: =AVERAGE(F$2:F105) -> 4.437136809
A106: 0.7477370081 | B106: 0.7524254817 | C106: 105 | D106: =AVERAGE(A$2:A106) -> 1.915695315 | E106: =AVERAGE(B$2:B106) -> 1.765435254 | F106: 4.113036325 | G106: =AVERAGE(F$2:F106) -> 4.434050138
A107: 2.972742892 | B107: 0.5061807405 | C107: 106 | D107: =AVERAGE(A$2:A107) -> 1.925667461 | E107: =AVERAGE(B$2:B107) -> 1.753555495 | F107: 6.872221989 | G107: =AVERAGE(F$2:F107) -> 4.457051759
A108: 0.159218445 | B108: 0.7202188229 | C108: 107 | D108: =AVERAGE(A$2:A108) -> 1.909158592 | E108: =AVERAGE(B$2:B108) -> 1.743898143 | F108: 1.323017594 | G108: =AVERAGE(F$2:F108) -> 4.42776172
A109: 0.8685801138 | B109: 0.1168039146 | C109: 108 | D109: =AVERAGE(A$2:A109) -> 1.899523606 | E109: =AVERAGE(B$2:B109) -> 1.728832456 | F109: 1.070848831 | G109: =AVERAGE(F$2:F109) -> 4.396679194
A110: 0.6269894064 | B110: 1.14371596 | C110: 109 | D110: =AVERAGE(A$2:A110) -> 1.887848981 | E110: =AVERAGE(B$2:B110) -> 1.723464414 | F110: 10.80356964 | G110: =AVERAGE(F$2:F110) -> 4.455458005
A111: 2.329288528 | B111: 0.2814754951 | C111: 110 | D111: =AVERAGE(A$2:A111) -> 1.891862067 | E111: =AVERAGE(B$2:B111) -> 1.710355424 | F111: 2.035588294 | G111: =AVERAGE(F$2:F111) -> 4.43345919
A112: 1.609875796 | B112: 0.2892250695 | C112: 111 | D112: =AVERAGE(A$2:A112) -> 1.889321651 | E112: =AVERAGE(B$2:B112) -> 1.697552448 | F112: 4.446875934 | G112: =AVERAGE(F$2:F112) -> 4.433580061
A113: 2.285859563 | B113: 1.604063327 | C113: 112 | D113: =AVERAGE(A$2:A113) -> 1.892862168 | E113: =AVERAGE(B$2:B113) -> 1.696717724 | F113: 1.197381849 | G113: =AVERAGE(F$2:F113) -> 4.404685434
A114: 0.4931974671 | B114: 0.5304621203 | C114: 113 | D114: =AVERAGE(A$2:A114) -> 1.880475754 | E114: =AVERAGE(B$2:B114) -> 1.686396878 | F114: 2.794608875 | G114: =AVERAGE(F$2:F114) -> 4.390436969
A115: 0.4212353996 | B115: 1.229953728 | C115: 114 | D115: =AVERAGE(A$2:A115) -> 1.8676754 | E115: =AVERAGE(B$2:B115) -> 1.68239299 | F115: 1.057180134 | G115: =AVERAGE(F$2:F115) -> 4.361197874
A116: 0.2262527269 | B116: 0.5736963974 | C116: 115 | D116: =AVERAGE(A$2:A116) -> 1.85340216 | E116: =AVERAGE(B$2:B116) -> 1.67275215 | F116: 2.069487172 | G116: =AVERAGE(F$2:F116) -> 4.341269955
A117: 0.4969107344 | B117: 0.3721512995 | C117: 116 | D117: =AVERAGE(A$2:A117) -> 1.841708268 | E117: =AVERAGE(B$2:B117) -> 1.661540074 | F117: 2.266024495 | G117: =AVERAGE(F$2:F117) -> 4.323379908
A118: 0.7471062628 | B118: 1.067680388 | C118: 117 | D118: =AVERAGE(A$2:A118) -> 1.832352695 | E118: =AVERAGE(B$2:B118) -> 1.65646435 | F118: 3.422391533 | G118: =AVERAGE(F$2:F118) -> 4.315679153
A119: 0.140891046 | B119: 0.7706206939 | C119: 118 | D119: =AVERAGE(A$2:A119) -> 1.818018275 | E119: =AVERAGE(B$2:B119) -> 1.648957201 | F119: 22.05037204 | G119: =AVERAGE(F$2:F119) -> 4.46597316
A120: 2.661988144 | B120: 3.6905149 | C120: 119 | D120: =AVERAGE(A$2:A120) -> 1.825110458 | E120: =AVERAGE(B$2:B120) -> 1.666113148 | F120: 9.776028947 | G120: =AVERAGE(F$2:F120) -> 4.510595478
A121: 0.1704928372 | B121: 0.3295983005 | C121: 120 | D121: =AVERAGE(A$2:A121) -> 1.811321978 | E121: =AVERAGE(B$2:B121) -> 1.654975524 | F121: 1.168819131 | G121: =AVERAGE(F$2:F121) -> 4.482747341
A122: 14.12396318 | B122: 4.050787771 | C122: 121 | D122: =AVERAGE(A$2:A122) -> 1.913079344 | E122: =AVERAGE(B$2:B122) -> 1.674775625 | F122: 1.18539846 | G122: =AVERAGE(F$2:F122) -> 4.455496524
A123: 0.7879216699 | B123: 0.5466558061 | C123: 122 | D123: =AVERAGE(A$2:A123) -> 1.90385674 | E123: =AVERAGE(B$2:B123) -> 1.665528741 | F123: 2.172441808 | G123: =AVERAGE(F$2:F123) -> 4.436782961
A124: 6.029548601 | B124: 2.863501495 | C124: 123 | D124: =AVERAGE(A$2:A124) -> 1.93739895 | E124: =AVERAGE(B$2:B124) -> 1.675268357 | F124: 2.67397874 | G124: =AVERAGE(F$2:F124) -> 4.422451219
A125: 0.3076468409 | B125: 2.318972387 | C125: 124 | D125: =AVERAGE(A$2:A125) -> 1.924255788 | E125: =AVERAGE(B$2:B125) -> 1.680459519 | F125: 1.814476158 | G125: =AVERAGE(F$2:F125) -> 4.401419162
A126: 0.7428858639 | B126: 8.290485693 | C126: 125 | D126: =AVERAGE(A$2:A126) -> 1.914804828 | E126: =AVERAGE(B$2:B126) -> 1.733339728 | F126: 1.862479078 | G126: =AVERAGE(F$2:F126) -> 4.381107642
A127: 0.2693181465 | B127: 2.361251491 | C127: 126 | D127: =AVERAGE(A$2:A127) -> 1.90174541 | E127: =AVERAGE(B$2:B127) -> 1.738323155 | F127: 2.377863036 | G127: =AVERAGE(F$2:F127) -> 4.365208875
A128: 4.868381522 | B128: 0.8857267858 | C128: 127 | D128: =AVERAGE(A$2:A128) -> 1.92510475 | E128: =AVERAGE(B$2:B128) -> 1.731609798 | F128: 1.309460114 | G128: =AVERAGE(F$2:F128) -> 4.341147861
A129: 8.341909501 | B129: 2.445203046 | C129: 128 | D129: =AVERAGE(A$2:A129) -> 1.975236037 | E129: =AVERAGE(B$2:B129) -> 1.737184745 | F129: 1.04416331 | G129: =AVERAGE(F$2:F129) -> 4.315390169
A130: =EXP(NORMSINV(RAND())) -> 0.2571056675 | B130: 0.9706865351 | C130: 129 | D130: =AVERAGE(A$2:A130) -> 1.961917197 | E130: =AVERAGE(B$2:B130) -> 1.731242898 | F130: 3.08406355 | G130: =AVERAGE(F$2:F130) -> 4.305845002
A131: 2.25553132 | B131: =-LN(RAND())/0.606531 -> 0.4813505746 | C131: 130 | D131: =AVERAGE(A$2:A131) -> 1.964175767 | E131: =AVERAGE(B$2:B131) -> 1.721628342 | F131: =RAND()^(-1) -> 4.290927843 | G131: =AVERAGE(F$2:F131) -> 4.305730254
A132: 0.4020718386 | B132: 0.6451335552 | C132: 131 | D132: =AVERAGE(A$2:A132) -> 1.952251309 | E132: =AVERAGE(B$2:B132) -> 1.713410825 | F132: 1.338644653 | G132: =AVERAGE(F$2:F132) -> 4.283080746
A133: 5.684767069 | B133: 0.1416148975 | C133: 132 | D133: =AVERAGE(A$2:A133) -> 1.980527944 | E133: =AVERAGE(B$2:B133) -> 1.70150328 | F133: 1.773660785 | G133: =AVERAGE(F$2:F133) -> 4.264069989
A134: 0.6871316016 | B134: 5.093160743 | C134: 133 | D134: =AVERAGE(A$2:A134) -> 1.970803159 | E134: =AVERAGE(B$2:B134) -> 1.727004464 | F134: 1.892048189 | G134: =AVERAGE(F$2:F134) -> 4.246235238
A135: 1.389727569 | B135: 2.077987378 | C135: 134 | D135: =AVERAGE(A$2:A135) -> 1.966466774 | E135: =AVERAGE(B$2:B135) -> 1.729623739 | F135: 1.072382685 | G135: =AVERAGE(F$2:F135) -> 4.222549771
A136: 0.1614574594 | B136: 2.422862109 | C136: 135 | D136: =AVERAGE(A$2:A136) -> 1.953096335 | E136: =AVERAGE(B$2:B136) -> 1.734758838 | F136: 8.56509695 | G136: =AVERAGE(F$2:F136) -> 4.254716788
A137: 2.159683572 | B137: 0.3637382218 | C137: 136 | D137: =AVERAGE(A$2:A137) -> 1.954615359 | E137: =AVERAGE(B$2:B137) -> 1.724677804 | F137: 2.664552418 | G137: =AVERAGE(F$2:F137) -> 4.243024402
A138: 0.2894337158 | B138: 0.8682013194 | C138: 137 | D138: =AVERAGE(A$2:A138) -> 1.942460748 | E138: =AVERAGE(B$2:B138) -> 1.718426151 | F138: 5.451159688 | G138: =AVERAGE(F$2:F138) -> 4.251842908
A139: 3.720833894 | B139: 0.8261501514 | C139: 138 | D139: =AVERAGE(A$2:A139) -> 1.95534751 | E139: =AVERAGE(B$2:B139) -> 1.711960383 | F139: 11.42643418 | G139: =AVERAGE(F$2:F139) -> 4.3038327
A140: 2.255399137 | B140: 2.647880743 | C140: 139 | D140: =AVERAGE(A$2:A140) -> 1.957506155 | E140: =AVERAGE(B$2:B140) -> 1.718693623 | F140: 12.26579859 | G140: =AVERAGE(F$2:F140) -> 4.36111303
A141: 1.515697206 | B141: 2.341071481 | C141: 140 | D141: =AVERAGE(A$2:A141) -> 1.954350377 | E141: =AVERAGE(B$2:B141) -> 1.723139179 | F141: 1.131689725 | G141: =AVERAGE(F$2:F141) -> 4.338045721
A142: 2.158632687 | B142: 4.493467896 | C142: 141 | D142: =AVERAGE(A$2:A142) -> 1.955799188 | E142: =AVERAGE(B$2:B142) -> 1.7427869 | F142: 1.832878867 | G142: =AVERAGE(F$2:F142) -> 4.32027858
A143: 3.720620191 | B143: 0.7254310022 | C143: 142 | D143: =AVERAGE(A$2:A143) -> 1.968227505 | E143: =AVERAGE(B$2:B143) -> 1.735622422 | F143: 1378.659235 | G143: =AVERAGE(F$2:F143) -> 13.99872193
A144: 4.287590671 | B144: 0.2280674733 | C144: 143 | D144: =AVERAGE(A$2:A144) -> 1.984446827 | E144: =AVERAGE(B$2:B144) -> 1.72508008 | F144: 5.663127361 | G144: =AVERAGE(F$2:F144) -> 13.94043106
A145: 0.5373729306 | B145: 0.1633962772 | C145: 144 | D145: =AVERAGE(A$2:A145) -> 1.974397703 | E145: =AVERAGE(B$2:B145) -> 1.714235054 | F145: 1.753850419 | G145: =AVERAGE(F$2:F145) -> 13.85580203
A146: 0.4364011611 | B146: 2.129867905 | C146: 145 | D146: =AVERAGE(A$2:A146) -> 1.96379083 | E146: =AVERAGE(B$2:B146) -> 1.717101487 | F146: 16.11146853 | G146: =AVERAGE(F$2:F146) -> 13.87135835
A147: 0.9030379403 | B147: 4.88100811 | C147: 146 | D147: =AVERAGE(A$2:A147) -> 1.9565254 | E147: =AVERAGE(B$2:B147) -> 1.73877208 | F147: 1.129552355 | G147: =AVERAGE(F$2:F147) -> 13.78408571
A148: 0.1412210807 | B148: 1.31237193 | C148: 147 | D148: =AVERAGE(A$2:A148) -> 1.944176391 | E148: =AVERAGE(B$2:B148) -> 1.735871399 | F148: 1.512448033 | G148: =AVERAGE(F$2:F148) -> 13.70060518
A149: 1.071096065 | B149: 0.3170897243 | C149: 148 | D149: =AVERAGE(A$2:A149) -> 1.938277199 | E149: =AVERAGE(B$2:B149) -> 1.726285036 | F149: 5.798558503 | G149: =AVERAGE(F$2:F149) -> 13.64721297
A150: 1.299302166 | B150: 3.701391624 | C150: 149 | D150: =AVERAGE(A$2:A150) -> 1.933988776 | E150: =AVERAGE(B$2:B150) -> 1.739540785 | F150: 1.435145683 | G150: =AVERAGE(F$2:F150) -> 13.56525279
A151: 0.7277747127 | B151: 0.4557265111 | C151: 150 | D151: =AVERAGE(A$2:A151) -> 1.925947349 | E151: =AVERAGE(B$2:B151) -> 1.730982023 | F151: 1.262422883 | G151: =AVERAGE(F$2:F151) -> 13.48323392
A152: 2.391740969 | B152: 3.205274292 | C152: 151 | D152: =AVERAGE(A$2:A152) -> 1.929032075 | E152: =AVERAGE(B$2:B152) -> 1.740745548 | F152: 1.356927516 | G152: =AVERAGE(F$2:F152) -> 13.40292726
A153: 3.971758553 | B153: 0.2397328482 | C153: 152 | D153: =AVERAGE(A$2:A153) -> 1.942471065 | E153: =AVERAGE(B$2:B153) -> 1.730870465 | F153: 1.003967852 | G153: =AVERAGE(F$2:F153) -> 13.32135515
A154: 0.6551452102 | B154: 0.767908195 | C154: 153 | D154: =AVERAGE(A$2:A154) -> 1.934057171 | E154: =AVERAGE(B$2:B154) -> 1.724576594 | F154: 4.000139425 | G154: =AVERAGE(F$2:F154) -> 13.26043218
A155: 1.117644906 | B155: 1.668904805 | C155: 154 | D155: =AVERAGE(A$2:A155) -> 1.928755792 | E155: =AVERAGE(B$2:B155) -> 1.724215089 | F155: 2.241020333 | G155: =AVERAGE(F$2:F155) -> 13.18887755
A156: 4.591169324 | B156: 0.1170513483 | C156: 155 | D156: =AVERAGE(A$2:A156) -> 1.945932654 | E156: =AVERAGE(B$2:B156) -> 1.71384629 | F156: 1.009094937 | G156: =AVERAGE(F$2:F156) -> 13.11029831
A157: 0.8049511299 | B157: 2.194877121 | C157: 156 | D157: =AVERAGE(A$2:A157) -> 1.93861867 | E157: =AVERAGE(B$2:B157) -> 1.716929821 | F157: 3.042122229 | G157: =AVERAGE(F$2:F157) -> 13.04575872
A158: 7.393970153 | B158: 1.207318816 | C158: 157 | D158: =AVERAGE(A$2:A158) -> 1.973366131 | E158: =AVERAGE(B$2:B158) -> 1.713683891 | F158: 2.008451551 | G158: =AVERAGE(F$2:F158) -> 12.9754574
A159: 0.6493785489 | B159: 1.050860188 | C159: 158 | D159: =AVERAGE(A$2:A159) -> 1.964986463 | E159: =AVERAGE(B$2:B159) -> 1.709488805 | F159: 2.39679379 | G159: =AVERAGE(F$2:F159) -> 12.90850383
A160: 1.465122642 | B160: 1.582966821 | C160: 159 | D160: =AVERAGE(A$2:A160) -> 1.961842665 | E160: =AVERAGE(B$2:B160) -> 1.708693069 | F160: 1.040866092 | G160: =AVERAGE(F$2:F160) -> 12.8338646
A161: 2.79043345 | B161: 0.4348507896 | C161: 160 | D161: =AVERAGE(A$2:A161) -> 1.967021358 | E161: =AVERAGE(B$2:B161) -> 1.700731555 | F161: 2.383539646 | G161: =AVERAGE(F$2:F161) -> 12.76855007
A162: 2.0759066 | B162: 2.782359448 | C162: 161 | D162: =AVERAGE(A$2:A162) -> 1.967697664 | E162: =AVERAGE(B$2:B162) -> 1.70744974 | F162: 1.013601477 | G162: =AVERAGE(F$2:F162) -> 12.69553797
A163: 0.5988140128 | B163: 1.925256593 | C163: 162 | D163: =AVERAGE(A$2:A163) -> 1.959247765 | E163: =AVERAGE(B$2:B163) -> 1.708794227 | F163: 2.501588469 | G163: =AVERAGE(F$2:F163) -> 12.63261235
A164: 3.542396807 | B164: 0.05112043398 | C164: 163 | D164: =AVERAGE(A$2:A164) -> 1.968960335 | E164: =AVERAGE(B$2:B164) -> 1.698624449 | F164: 1.314776865 | G164: =AVERAGE(F$2:F164) -> 12.56317778
A165: 0.8567237733 | B165: 1.320353026 | C165: 164 | D165: =AVERAGE(A$2:A165) -> 1.962178405 | E165: =AVERAGE(B$2:B165) -> 1.696317916 | F165: 1.549928518 | G165: =AVERAGE(F$2:F165) -> 12.49602382
A166: 1.21358283 | B166: 2.837251917 | C166: 165 | D166: =AVERAGE(A$2:A166) -> 1.957641462 | E166: =AVERAGE(B$2:B166) -> 1.703232668 | F166: 1.286330579 | G166: =AVERAGE(F$2:F166) -> 12.42808629
A167: 0.8193811932 | B167: 0.5024192457 | C167: 166 | D167: =AVERAGE(A$2:A167) -> 1.950784473 | E167: =AVERAGE(B$2:B167) -> 1.695998852 | F167: 1.058096061 | G167: =AVERAGE(F$2:F167) -> 12.35959237
A168: 0.9339400156 | B168: 0.01963297482 | C168: 167 | D168: =AVERAGE(A$2:A168) -> 1.944695584 | E168: =AVERAGE(B$2:B168) -> 1.685960733 | F168: 1.522124904 | G168: =AVERAGE(F$2:F168) -> 12.29469736
A169: 2.837683606 | B169: 0.2376094817 | C169: 168 | D169: =AVERAGE(A$2:A169) -> 1.950010989 | E169: =AVERAGE(B$2:B169) -> 1.677339594 | F169: 1.393687955 | G169: =AVERAGE(F$2:F169) -> 12.22981039
A170: 1.144012833 | B170: 1.200876106 | C170: 169 | D170: =AVERAGE(A$2:A170) -> 1.945241769 | E170: =AVERAGE(B$2:B170) -> 1.674520284 | F170: 1.361671731 | G170: =AVERAGE(F$2:F170) -> 12.16550188
A171: 2.545525469 | B171: 4.49184347 | C171: 170 | D171: =AVERAGE(A$2:A171) -> 1.948772849 | E171: =AVERAGE(B$2:B171) -> 1.691092773 | F171: 1.297324264 | G171: =AVERAGE(F$2:F171) -> 12.10157143
A172: 0.3374261991 | B172: 0.3879828765 | C172: 171 | D172: =AVERAGE(A$2:A172) -> 1.93934977 | E172: =AVERAGE(B$2:B172) -> 1.683472247 | F172: 8.341032803 | G172: =AVERAGE(F$2:F172) -> 12.07957997
A173: 0.404601647 | B173: 0.2246467712 | C173: 172 | D173: =AVERAGE(A$2:A173) -> 1.930426815 | E173: =AVERAGE(B$2:B173) -> 1.674990704 | F173: 2.923343354 | G173: =AVERAGE(F$2:F173) -> 12.02634604
A174: 1.974305064 | B174: 0.3041405002 | C174: 173 | D174: =AVERAGE(A$2:A174) -> 1.930680447 | E174: =AVERAGE(B$2:B174) -> 1.667066714 | F174: 1.017704277 | G174: =AVERAGE(F$2:F174) -> 11.96271227
A175: 0.1293213598 | B175: 1.469248117 | C175: 174 | D175: =AVERAGE(A$2:A175) -> 1.920327808 | E175: =AVERAGE(B$2:B175) -> 1.665929826 | F175: 21.41026723 | G175: =AVERAGE(F$2:F175) -> 12.01700856
A176: 2.754003348 | B176: 1.87354376 | C176: 175 | D176: =AVERAGE(A$2:A176) -> 1.925091669 | E176: =AVERAGE(B$2:B176) -> 1.667116191 | F176: 2.298267397 | G176: =AVERAGE(F$2:F176) -> 11.9614729
A177: 8.213514123 | B177: 3.742238847 | C177: 176 | D177: =AVERAGE(A$2:A177) -> 1.960821342 | E177: =AVERAGE(B$2:B177) -> 1.678906661 | F177: 10.39612826 | G177: =AVERAGE(F$2:F177) -> 11.9525789
A178: 2.217952247 | B178: 1.820760976 | C178: 177 | D178: =AVERAGE(A$2:A178) -> 1.962274059 | E178: =AVERAGE(B$2:B178) -> 1.679708098 | F178: 1.074751396 | G178: =AVERAGE(F$2:F178) -> 11.89112224
A179: 0.9200264306 | B179: 0.4776866923 | C179: 178 | D179: =AVERAGE(A$2:A179) -> 1.956418735 | E179: =AVERAGE(B$2:B179) -> 1.672955168 | F179: 2.044660278 | G179: =AVERAGE(F$2:F179) -> 11.83580504
A180: 1.694649098 | B180: 2.008700392 | C180: 179 | D180: =AVERAGE(A$2:A180) -> 1.954956335 | E180: =AVERAGE(B$2:B180) -> 1.67483084 | F180: 1.685719899 | G180: =AVERAGE(F$2:F180) -> 11.77910065
A181: 1.55509169 | B181: 1.102342322 | C181: 180 | D181: =AVERAGE(A$2:A181) -> 1.952734864 | E181: =AVERAGE(B$2:B181) -> 1.671650348 | F181: 1.582790139 | G181: =AVERAGE(F$2:F181) -> 11.72245449
A182: 1.272698133 | B182: 0.3881597424 | C182: 181 | D182: =AVERAGE(A$2:A182) -> 1.948977755 | E182: =AVERAGE(B$2:B182) -> 1.66455924 | F182: 1.869848609 | G182: =AVERAGE(F$2:F182) -> 11.6680202
A183: 1.130781854 | B183: 1.441284381 | C183: 182 | D183: =AVERAGE(A$2:A183) -> 1.944482174 | E183: =AVERAGE(B$2:B183) -> 1.663332455 | F183: 34.14752944 | G183: =AVERAGE(F$2:F183) -> 11.79153399
A184: 0.36619024 | B184: 0.5070194085 | C184: 183 | D184: =AVERAGE(A$2:A184) -> 1.935857627 | E184: =AVERAGE(B$2:B184) -> 1.657013804 | F184: 2.383573485 | G184: =AVERAGE(F$2:F184) -> 11.74012437
A185: 0.4632161533 | B185: 1.244487523 | C185: 184 | D185: =AVERAGE(A$2:A185) -> 1.927854141 | E185: =AVERAGE(B$2:B185) -> 1.654771814 | F185: 67.08295699 | G185: =AVERAGE(F$2:F185) -> 12.04090063
A186: 5.854437989 | B186: 1.639783813 | C186: 185 | D186: =AVERAGE(A$2:A186) -> 1.949078919 | E186: =AVERAGE(B$2:B186) -> 1.654690798 | F186: 4.759671741 | G186: =AVERAGE(F$2:F186) -> 12.00154264
A187: 29.11138745 | B187: 0.4691938367 | C187: 186 | D187: =AVERAGE(A$2:A187) -> 2.095112836 | E187: =AVERAGE(B$2:B187) -> 1.648317158 | F187: 1.578083817 | G187: =AVERAGE(F$2:F187) -> 11.94550253
A188: 1.32420689 | B188: 3.656159275 | C188: 187 | D188: =AVERAGE(A$2:A188) -> 2.090990344 | E188: =AVERAGE(B$2:B188) -> 1.659054282 | F188: 2.130340461 | G188: =AVERAGE(F$2:F188) -> 11.89301504
A189: 2.510230759 | B189: 2.378019813 | C189: 188 | D189: =AVERAGE(A$2:A189) -> 2.093220346 | E189: =AVERAGE(B$2:B189) -> 1.662878566 | F189: 1.56854642 | G189: =AVERAGE(F$2:F189) -> 11.83809765
A190: 1.052614899 | B190: 4.38049962 | C190: 189 | D190: =AVERAGE(A$2:A190) -> 2.087714497 | E190: =AVERAGE(B$2:B190) -> 1.677257514 | F190: 1.104333461 | G190: =AVERAGE(F$2:F190) -> 11.78130525
A191: 1.008221544 | B191: 2.512210989 | C191: 190 | D191: =AVERAGE(A$2:A191) -> 2.082032955 | E191: =AVERAGE(B$2:B191) -> 1.681652006 | F191: 16.80821019 | G191: =AVERAGE(F$2:F191) -> 11.80776264
A192: 1.085285048 | B192: 3.912829851 | C192: 191 | D192: =AVERAGE(A$2:A192) -> 2.07681438 | E192: =AVERAGE(B$2:B192) -> 1.693333565 | F192: 1.328097183 | G192: =AVERAGE(F$2:F192) -> 11.75289528
A193: 1.275096183 | B193: 1.93667136 | C193: 192 | D193: =AVERAGE(A$2:A193) -> 2.072638764 | E193: =AVERAGE(B$2:B193) -> 1.694600949 | F193: 1.900359143 | G193: =AVERAGE(F$2:F193) -> 11.70157999
A194: =EXP(NORMSINV(RAND())) -> 1.222295543 | B194: 1.521830913 | C194: 193 | D194: =AVERAGE(A$2:A194) -> 2.068232841 | E194: =AVERAGE(B$2:B194) -> 1.693705768 | F194: 1.098708774 | G194: =AVERAGE(F$2:F194) -> 11.64664283
A195: 0.1425627999 | B195: =-LN(RAND())/0.606531 -> 0.5894049426 | C195: 194 | D195: =AVERAGE(A$2:A195) -> 2.058306707 | E195: =AVERAGE(B$2:B195) -> 1.688013496 | F195: =RAND()^(-1) -> 1.073473109 | G195: =AVERAGE(F$2:F195) -> 11.59214196
A196: 0.6877006067 | B196: 0.6707315039 | C196: 195 | D196: =AVERAGE(A$2:A196) -> 2.051277957 | E196: =AVERAGE(B$2:B196) -> 1.682796665 | F196: 1.063706284 | G196: =AVERAGE(F$2:F196) -> 11.53814998
A197: 0.6742100682 | B197: 4.336783263 | C197: 196 | D197: =AVERAGE(A$2:A197) -> 2.044252101 | E197: =AVERAGE(B$2:B197) -> 1.696337413 | F197: 1.170672756 | G197: =AVERAGE(F$2:F197) -> 11.48525469
A198: 6.415702497 | B198: 0.5766733649 | C198: 197 | D198: =AVERAGE(A$2:A198) -> 2.066442204 | E198: =AVERAGE(B$2:B198) -> 1.690653839 | F198: 2.642477758 | G198: =AVERAGE(F$2:F198) -> 11.4403675
A199: 0.5871014081 | B199: 1.289130956 | C199: 198 | D199: =AVERAGE(A$2:A199) -> 2.058970786 | E199: =AVERAGE(B$2:B199) -> 1.688625946 | F199: 1.432725445 | G199: =AVERAGE(F$2:F199) -> 11.38982385
A200: 1.088634965 | B200: 0.8992926503 | C200: 199 | D200: =AVERAGE(A$2:A200) -> 2.054094727 | E200: =AVERAGE(B$2:B200) -> 1.684659447 | F200: 1.983207656 | G200: =AVERAGE(F$2:F200) -> 11.34255442
... 1800 more rows

Sheet lossdata
B1: US flood claims | C1: croploss | D1: Sheldus property | E1: sheldus fatalities | H1: US flood claims | I1: croploss | J1: Sheldus property | K1: Sheldus fatalities | L1: `
A2: =RAND() -> 0.9083860835 | B2: 0.7151384 | C2: 5059000 | D2: 12500000 | E2: 2.09 | G2: 1 | H2: =AVERAGE(B$2:B3) -> 0.57267345 | I2: =AVERAGE(C$2:C3) -> 4557000 | J2: =AVERAGE(D$2:D3) -> 10357142.85 | K2: =AVERAGE(E$2:E3) -> 2.045
A3: 0.2976696982 | B3: 0.4302085 | C3: 4055000 | D3: 8214285.7 | E3: 2 | G3: 2 | H3: =AVERAGE(B$2:B4) -> 0.7438229667 | I3: =AVERAGE(C$2:C4) -> 5077000 | J3: =AVERAGE(D$2:D4) -> 13077601.57 | K3: =AVERAGE(E$2:E4) -> 2.363333333 | V3: Hit ESCAPE to stop
A4: 0.5360917727 | B4: 1.086122 | C4: 6117000 | D4: 18518519 | E4: 3 | G4: 3 | H4: =AVERAGE(B$2:B5) -> 0.694231425 | I4: =AVERAGE(C$2:C5) -> 4945250 | J4: =AVERAGE(D$2:D5) -> 12308201.18 | K4: =AVERAGE(E$2:E5) -> 2.2725
A5: 0.8422754681 | B5: 0.5454568 | C5: 4550000 | D5: 10000000 | E5: 2 | G5: 4 | H5: =AVERAGE(B$2:B6) -> 0.75987254 | I5: =AVERAGE(C$2:C6) -> 5151800 | J5: =AVERAGE(D$2:D6) -> 13294836.74 | K5: =AVERAGE(E$2:E6) -> 2.418
A6: 0.2292292195 | B6: 1.022437 | C6: 5978000 | D6: 17241379 | E6: 3 | G6: 5 | H6: =AVERAGE(B$2:B7) -> 0.7412440833 | I6: =AVERAGE(C$2:C7) -> 5105333.333 | J6: =AVERAGE(D$2:D7) -> 12972969.95 | K6: =AVERAGE(E$2:E7) -> 2.348333333
A7: 0.7139886514 | B7: 0.6481018 | C7: 4873000 | D7: 11363636 | E7: 2 | G7: 6 | H7: =AVERAGE(B$2:B8) -> 0.7328892286 | I7: =AVERAGE(C$2:C8) -> 5083571.429 | J7: =AVERAGE(D$2:D8) -> 12791766.39 | K7: =AVERAGE(E$2:E8) -> 2.298571429
A8: 0.3542839636 | B8: 0.6827601 | C8: 4953000 | D8: 11704545 | E8: 2 | G8: 7 | H8: =AVERAGE(B$2:B9) -> 0.6883951125 | I8: =AVERAGE(C$2:C9) -> 4922250 | J8: =AVERAGE(D$2:D9) -> 12085652.74 | K8: =AVERAGE(E$2:E9) -> 2.26125
A9: 0.7619795593 | B9: 0.3769363 | C9: 3793000 | D9: 7142857.2 | E9: 2 | G9: 8 | H9: =AVERAGE(B$2:B10) -> 0.9546741 | I9: =AVERAGE(C$2:C10) -> 5452555.556 | J9: =AVERAGE(D$2:D10) -> 18458851.77 | K9: =AVERAGE(E$2:E10) -> 2.676666667
A10: 0.4648282628 | B10: 3.084906 | C10: 9695000 | D10: 69444444 | E10: 6 | G10: 9 | H10: =AVERAGE(B$2:B11) -> 1.22824809 | I10: =AVERAGE(C$2:C11) -> 5960300 | J10: =AVERAGE(D$2:D11) -> 24946299.89 | K10: =AVERAGE(E$2:E11) -> 3.109
A11: 0.1238503392 | B11: 3.690414 | C11: 10530000 | D11: 83333333 | E11: 7 | G11: 10 | H11: =AVERAGE(B$2:B12) -> 1.189299945 | I11: =AVERAGE(C$2:C12) -> 5903181.818 | J11: =AVERAGE(D$2:D12) -> 23943021.35 | K11: =AVERAGE(E$2:E12) -> 3.099090909
A12: 0.4587942849 | B12: 0.7998185 | C12: 5332000 | D12: 13910236 | E12: 3 | G12: 11 | H12: =AVERAGE(B$2:B13) -> 1.14258275 | I12: =AVERAGE(C$2:C13) -> 5811583.333 | J12: =AVERAGE(D$2:D13) -> 22853899.82 | K12: =AVERAGE(E$2:E13) -> 3.0075
A13: 0.3104994349 | B13: 0.6286936 | C13: 4804000 | D13: 10873563 | E13: 2 | G13: 12 | H13: =AVERAGE(B$2:B14) -> 1.095404592 | I13: =AVERAGE(C$2:C14) -> 5709384.615 | J13: =AVERAGE(D$2:D14) -> 21841347.65 | K13: =AVERAGE(E$2:E14) -> 2.93
A14: 0.8266705505 | B14: 0.5292667 | C14: 4483000 | D14: 9690721.6 | E14: 2 | G14: 13 | H14: =AVERAGE(B$2:B15) -> 1.067193093 | I14: =AVERAGE(C$2:C15) -> 5658714.286 | J14: =AVERAGE(D$2:D15) -> 21152679.96 | K14: =AVERAGE(E$2:E15) -> 2.865
A15: 0.7591013065 | B15: 0.7004436 | C15: 5000000 | D15: 12200000 | E15: 2.02 | G15: 14 | H15: =AVERAGE(B$2:B16) -> 1.861647553 | I15: =AVERAGE(C$2:C16) -> 6514800 | J15: =AVERAGE(D$2:D16) -> 46855834.63 | K15: =AVERAGE(E$2:E16) -> 4.074
A16: 0.744854274 | B16: 12.98401 | C16: 18500000 | D16: 406700000 | E16: 21 | G16: 15 | H16: =AVERAGE(B$2:B17) -> 2.081002019 | I16: =AVERAGE(C$2:C17) -> 6901375 | J16: =AVERAGE(D$2:D17) -> 51739844.97 | K16: =AVERAGE(E$2:E17) -> 4.381875
A17: 0.7682406563 | B17: 5.371319 | C17: 12700000 | D17: 125000000 | E17: 9 | G17: 16 | H17: =AVERAGE(B$2:B18) -> 2.036033488 | I17: =AVERAGE(C$2:C18) -> 6888176.471 | J17: =AVERAGE(D$2:D18) -> 49998227.79 | K17: =AVERAGE(E$2:E18) -> 4.335882353
A18: 0.7526675176 | B18: 1.316537 | C18: 6677000 | D18: 22132353 | E18: 3.6 | G18: 17 | H18: =AVERAGE(B$2:B19) -> 2.118221906 | I18: =AVERAGE(C$2:C19) -> 7081611.111 | J18: =AVERAGE(D$2:D19) -> 51690586.81 | K18: =AVERAGE(E$2:E19) -> 4.483888889
A19: 0.8628089131 | B19: 3.515425 | C19: 10370000 | D19: 80460690 | E19: 7 | G19: 18 | H19: =AVERAGE(B$2:B20) -> 2.034148053 | I19: =AVERAGE(C$2:C20) -> 6942894.737 | J19: =AVERAGE(D$2:D20) -> 49476102.48 | K19: =AVERAGE(E$2:E20) -> 4.353157895
A20: 0.7450467191 | B20: 0.5208187 | C20: 4446000 | D20: 9615384.6 | E20: 2 | G20: 19 | H20: =AVERAGE(B$2:B21) -> 2.0122297 | I20: =AVERAGE(C$2:C21) -> 6958750 | J20: =AVERAGE(D$2:D21) -> 48327297.36 | K20: =AVERAGE(E$2:E21) -> 4.3355
A21: 0.8118126863 | B21: 1.595781 | C21: 7260000 | D21: 26500000 | E21: 4 | G21: 20 | H21: =AVERAGE(B$2:B22) -> 1.937222662 | I21: =AVERAGE(C$2:C22) -> 6822142.857 | J21: =AVERAGE(D$2:D22) -> 46422822.88 | K21: =AVERAGE(E$2:E22) -> 4.224285714
A22: 0.2275473531 | B22: 0.4370819 | C22: 4090000 | D22: 8333333.3 | E22: 2 | G22: 21 | H22: =AVERAGE(B$2:B23) -> 1.875028882 | I22: =AVERAGE(C$2:C23) -> 6722545.455 | J22: =AVERAGE(D$2:D23) -> 44785857.02 | K22: =AVERAGE(E$2:E23) -> 4.123181818
A23: 0.8400604159 | B23: 0.5689595 | C23: 4631000 | D23: 10409574 | E23: 2 | G23: 22 | H23: =AVERAGE(B$2:B24) -> 1.81242107 | I23: =AVERAGE(C$2:C24) -> 6607695.652 | J23: =AVERAGE(D$2:D24) -> 43200964.63 | K23: =AVERAGE(E$2:E24) -> 4.030869565
A24: 0.1518056129 | B24: 0.4350492 | C24: 4081000 | D24: 8333332.2 | E24: 2 | G24: 23 | H24: =AVERAGE(B$2:B25) -> 1.766354538 | I24: =AVERAGE(C$2:C25) -> 6542041.667 | J24: =AVERAGE(D$2:D25) -> 41921757.77 | K24: =AVERAGE(E$2:E25) -> 3.947916667
A25: 0.9736278315 | B25: 0.7068243 | C25: 5032000 | D25: 12500000 | E25: 2.04 | G25: 24 | H25: =AVERAGE(B$2:B26) -> 2.159463156 | I25: =AVERAGE(C$2:C26) -> 6979560 | J25: =AVERAGE(D$2:D26) -> 53576887.46 | K25: =AVERAGE(E$2:E26) -> 4.4716
A26: 0.7651621627 | B26: 11.59407 | C26: 17480000 | D26: 333300000 | E26: 17.04 | G26: 25 | H26: =AVERAGE(B$2:B27) -> 2.09348605 | I26: =AVERAGE(C$2:C27) -> 6869846.154 | J26: =AVERAGE(D$2:D27) -> 51836899.84 | K26: =AVERAGE(E$2:E27) -> 4.376538462
A27: 0.07280162754 | B27: 0.4440584 | C27: 4127000 | D27: 8337209.3 | E27: 2 | G27: 26 | H27: =AVERAGE(B$2:B28) -> 2.058736233 | I27: =AVERAGE(C$2:C28) -> 6846592.593 | J27: =AVERAGE(D$2:D28) -> 50629265.37 | K27: =AVERAGE(E$2:E28) -> 4.325555556
A28: 0.5952726955 | B28: 1.155241 | C28: 6242000 | D28: 19230769 | E28: 3 | G28: 27 | H28: =AVERAGE(B$2:B29) -> 2.036593154 | I28: =AVERAGE(C$2:C29) -> 6850500 | J28: =AVERAGE(D$2:D29) -> 49691040.67 | K28: =AVERAGE(E$2:E29) -> 4.313928571
A29: 0.1597727128 | B29: 1.43873 | C29: 6956000 | D29: 24358974 | E29: 4 | G29: 28 | H29: =AVERAGE(B$2:B30) -> 1.981059393 | I29: =AVERAGE(C$2:C30) -> 6753241.379 | J29: =AVERAGE(D$2:D30) -> 48257146.45 | K29: =AVERAGE(E$2:E30) -> 4.234137931
A30: 0.8395059963 | B30: 0.4261141 | C30: 4030000 | D30: 8108108.1 | E30: 2 | G30: 29 | H30: =AVERAGE(B$2:B31) -> 1.952100147 | I30: =AVERAGE(C$2:C31) -> 6733166.667 | J30: =AVERAGE(D$2:D31) -> 47271381.93 | K30: =AVERAGE(E$2:E31) -> 4.193
A31: 0.6264662289 | B31: 1.112282 | C31: 6151000 | D31: 18684211 | E31: 3 | G31: 30 | H31: =AVERAGE(B$2:B32) -> 1.904971377 | I31: =AVERAGE(C$2:C32) -> 6655000 | J31: =AVERAGE(D$2:D32) -> 46043967 | K31: =AVERAGE(E$2:E32) -> 4.122258065
A32: 0.9101450767 | B32: 0.4911083 | C32: 4310000 | D32: 9221519 | E32: 2 | G32: 31 | H32: =AVERAGE(B$2:B33) -> 1.863029309 | I32: =AVERAGE(C$2:C33) -> 6591125 | J32: =AVERAGE(D$2:D33) -> 44925900 | K32: =AVERAGE(E$2:E33) -> 4.0559375
A33: 0.05009204054 | B33: 0.5628252 | C33: 4611000 | D33: 10265823 | E33: 2 | G33: 32 | H33: =AVERAGE(B$2:B34) -> 1.83419893 | I33: =AVERAGE(C$2:C34) -> 6565272.727 | J33: =AVERAGE(D$2:D34) -> 44037993.94 | K33: =AVERAGE(E$2:E34) -> 4.023939394
A34: 0.06416093574 | B34: 0.9116268 | C34: 5738000 | D34: 15625000 | E34: 3 | G34: 33 | H34: =AVERAGE(B$2:B35) -> 1.846717785 | I34: =AVERAGE(C$2:C35) -> 6616647.059 | J34: =AVERAGE(D$2:D35) -> 43838877.68 | K34: =AVERAGE(E$2:E35) -> 4.052647059
A35: 0.5480912707 | B35: 2.25984 | C35: 8312000 | D35: 37268041 | E35: 5 | G35: 34 | H35: =AVERAGE(B$2:B36) -> 1.805535911 | I35: =AVERAGE(C$2:C36) -> 6539771.429 | J35: =AVERAGE(D$2:D36) -> 42805868.15 | K35: =AVERAGE(E$2:E36) -> 3.994
A36: 0.8590570589 | B36: 0.4053522 | C36: 3926000 | D36: 7683544.3 | E36: 2 | G36: 35 | H36: =AVERAGE(B$2:B37) -> 1.770567639 | I36: =AVERAGE(C$2:C37) -> 6484555.556 | J36: =AVERAGE(D$2:D37) -> 41894594.04 | K36: =AVERAGE(E$2:E37) -> 3.938611111
A37: 0.4280519612 | B37: 0.5466781 | C37: 4552000 | D37: 10000000 | E37: 2 | G37: 36 | H37: =AVERAGE(B$2:B38) -> 1.892745649 | I37: =AVERAGE(C$2:C38) -> 6677675.676 | J37: =AVERAGE(D$2:D38) -> 44986632.04 | K37: =AVERAGE(E$2:E38) -> 4.102432432
A38: 0.02767917322 | B38: 6.291154 | C38: 13630000 | D38: 156300000 | E38: 10 | G38: 37 | H38: =AVERAGE(B$2:B39) -> 1.863927839 | I38: =AVERAGE(C$2:C39) -> 6641868.421 | J38: =AVERAGE(D$2:D39) -> 44167904.88 | K38: =AVERAGE(E$2:E39) -> 4.073421053
A39: 0.9189155031 | B39: 0.7976689 | C39: 5317000 | D39: 13875000 | E39: 3 | G39: 38 | H39: =AVERAGE(B$2:B40) -> 2.123488664 | I39: =AVERAGE(C$2:C40) -> 6933102.564 | J39: =AVERAGE(D$2:D40) -> 51950779.11 | K39: =AVERAGE(E$2:E40) -> 4.454102564
A40: 0.9066807313 | B40: 11.9868 | C40: 18000000 | D40: 347700000 | E40: 18.92 | G40: 39 | H40: =AVERAGE(B$2:B41) -> 2.099296823 | I40: =AVERAGE(C$2:C41) -> 6915900 | J40: =AVERAGE(D$2:D41) -> 51132778.86 | K40: =AVERAGE(E$2:E41) -> 4.41775
A41: 0.9456676326 | B41: 1.155815 | C41: 6245000 | D41: 19230769 | E41: 3 | G41: 40 | H41: =AVERAGE(B$2:B42) -> 2.062465063 | I41: =AVERAGE(C$2:C42) -> 6861439.024 | J41: =AVERAGE(D$2:D42) -> 50143611.64 | K41: =AVERAGE(E$2:E42) -> 4.358780488
A42: 0.8990409542 | B42: 0.5891947 | C42: 4683000 | D42: 10576923 | E42: 2 | G42: 41 | H42: =AVERAGE(B$2:B43) -> 2.1825133 | I42: =AVERAGE(C$2:C43) -> 7038547.619 | J42: =AVERAGE(D$2:D43) -> 53042573.27 | K42: =AVERAGE(E$2:E43) -> 4.516904762
A43: 0.6669832483 | B43: 7.104491 | C43: 14300000 | D43: 171900000 | E43: 11 | G43: 42 | H43: =AVERAGE(B$2:B44) -> 2.458887409 | I43: =AVERAGE(C$2:C44) -> 7315790.698 | J43: =AVERAGE(D$2:D44) -> 61918327.38 | K43: =AVERAGE(E$2:E44) -> 4.923488372
A44: 0.9961634571 | B44: 14.0666 | C44: 18960000 | D44: 434700000 | E44: 22 | G44: 43 | H44: =AVERAGE(B$2:B45) -> 2.770356332 | I44: =AVERAGE(C$2:C45) -> 7607704.545 | J44: =AVERAGE(D$2:D45) -> 72833819.94 | K44: =AVERAGE(E$2:E45) -> 5.357954545
A45: 0.2282311637 | B45: 16.16352 | C45: 20160000 | D45: 542200000 | E45: 24.04 | G45: 44 | H45: =AVERAGE(B$2:B46) -> 2.718631484 | I45: =AVERAGE(C$2:C46) -> 7530177.778 | J45: =AVERAGE(D$2:D46) -> 71400475.79 | K45: =AVERAGE(E$2:E46) -> 5.283333333
A46: 0.04615456213 | B46: 0.4427382 | C46: 4119000 | D46: 8333333.3 | E46: 2 | G46: 45 | H46: =AVERAGE(B$2:B47) -> 2.667949202 | I46: =AVERAGE(C$2:C47) -> 7449500 | J46: =AVERAGE(D$2:D47) -> 70007060.47 | K46: =AVERAGE(E$2:E47) -> 5.211956522
A47: 0.1174471344 | B47: 0.3872465 | C47: 3819000 | D47: 7303370.8 | E47: 2 | G47: 46 | H47: =AVERAGE(B$2:B48) -> 2.629775538 | I47: =AVERAGE(C$2:C48) -> 7410659.574 | J47: =AVERAGE(D$2:D48) -> 68845740.03 | K47: =AVERAGE(E$2:E48) -> 5.164893617
A48: 0.8614569774 | B48: 0.873787 | C48: 5624000 | D48: 15425000 | E48: 3 | G48: 47 | H48: =AVERAGE(B$2:B49) -> 2.598430881 | I48: =AVERAGE(C$2:C49) -> 7385041.667 | J48: =AVERAGE(D$2:D49) -> 67808931.84 | K48: =AVERAGE(E$2:E49) -> 5.119791667
A49: 0.7412961291 | B49: 1.125232 | C49: 6181000 | D49: 19078947 | E49: 3 | G49: 48 | H49: =AVERAGE(B$2:B50) -> 2.575856312 | I49: =AVERAGE(C$2:C50) -> 7378653.061 | J49: =AVERAGE(D$2:D50) -> 66935280.17 | K49: =AVERAGE(E$2:E50) -> 5.096938776
A50: 0.3565414867 | B50: 1.492277 | C50: 7072000 | D50: 25000000 | E50: 4 | G50: 49 | H50: =AVERAGE(B$2:B51) -> 2.550639906 | I50: =AVERAGE(C$2:C51) -> 7364620 | J50: =AVERAGE(D$2:D51) -> 66038392.75 | K50: =AVERAGE(E$2:E51) -> 5.067
A51: 0.1347932247 | B51: 1.315036 | C51: 6677000 | D51: 22090909 | E51: 3.6 | G51: 50 | H51: =AVERAGE(B$2:B52) -> 2.521671045 | I51: =AVERAGE(C$2:C52) -> 7339392.157 | J51: =AVERAGE(D$2:D52) -> 65101973.28 | K51: =AVERAGE(E$2:E52) -> 5.026470588
A52: 0.5049544235 | B52: 1.073228 | C52: 6078000 | D52: 18281000 | E52: 3 | G52: 51 | H52: =AVERAGE(B$2:B53) -> 2.499183429 | I52: =AVERAGE(C$2:C53) -> 7328750 | J52: =AVERAGE(D$2:D53) -> 64297239.45 | K52: =AVERAGE(E$2:E53) -> 5.006346154
A53: 0.485548201 | B53: 1.352315 | C53: 6786000 | D53: 23255814 | E53: 3.98 | G53: 52 | H53: =AVERAGE(B$2:B54) -> 2.464737953 | I53: =AVERAGE(C$2:C54) -> 7283584.906 | J53: =AVERAGE(D$2:D54) -> 63303510.78 | K53: =AVERAGE(E$2:E54) -> 4.949622642
A54: 0.1341032687 | B54: 0.6735732 | C54: 4935000 | D54: 11629620 | E54: 2 | G54: 53 | H54: =AVERAGE(B$2:B55) -> 2.430926483 | I54: =AVERAGE(C$2:C55) -> 7238388.889 | J54: =AVERAGE(D$2:D55) -> 62338079.34 | K54: =AVERAGE(E$2:E55) -> 4.895
A55: 0.5165249348 | B55: 0.6389186 | C55: 4843000 | D55: 11170213 | E55: 2 | G55: 54 | H55: =AVERAGE(B$2:B56) -> 2.394562685 | I55: =AVERAGE(C$2:C56) -> 7180545.455 | J55: =AVERAGE(D$2:D56) -> 61354414.02 | K55: =AVERAGE(E$2:E56) -> 4.842363636
A56: 0.897486558 | B56: 0.4309176 | C56: 4057000 | D56: 8236486.5 | E56: 2 | G56: 55 | H56: =AVERAGE(B$2:B57) -> 2.406882709 | I56: =AVERAGE(C$2:C57) -> 7225285.714 | J56: =AVERAGE(D$2:D57) -> 61498878.84 | K56: =AVERAGE(E$2:E57) -> 4.863035714
A57: 0.5715690844 | B57: 3.084484 | C57: 9686000 | D57: 69444444 | E57: 6 | G57: 56 | H57: =AVERAGE(B$2:B58) -> 2.381355974 | I57: =AVERAGE(C$2:C58) -> 7200929.825 | J57: =AVERAGE(D$2:D58) -> 60705038.86 | K57: =AVERAGE(E$2:E58) -> 4.830350877
A58: 0.3573648492 | B58: 0.9518588 | C58: 5837000 | D58: 16250000 | E58: 3 | G58: 57 | H58: =AVERAGE(B$2:B59) -> 2.347148493 | I58: =AVERAGE(C$2:C59) -> 7143810.345 | J58: =AVERAGE(D$2:D59) -> 59789016.77 | K58: =AVERAGE(E$2:E59) -> 4.781551724
A59: 0.3112469701 | B59: 0.3973221 | C59: 3888000 | D59: 7575757.6 | E59: 2 | G59: 58 | H59: =AVERAGE(B$2:B60) -> 2.315604924 | I59: =AVERAGE(C$2:C60) -> 7095508.475 | J59: =AVERAGE(D$2:D60) -> 58930471.25 | K59: =AVERAGE(E$2:E60) -> 4.73440678
A60: 0.8556883903 | B60: 0.4860779 | C60: 4294000 | D60: 9134831.5 | E60: 2 | G60: 59 | H60: =AVERAGE(B$2:B61) -> 2.287138655 | I60: =AVERAGE(C$2:C61) -> 7055983.333 | J60: =AVERAGE(D$2:D61) -> 58125601.7 | K60: =AVERAGE(E$2:E61) -> 4.688833333
A61: 0.8809494849 | B61: 0.6076288 | C61: 4724000 | D61: 10638298 | E61: 2 | G61: 60 | H61: =AVERAGE(B$2:B62) -> 2.270083956 | I61: =AVERAGE(C$2:C62) -> 7046442.623 | J61: =AVERAGE(D$2:D62) -> 57510732.11 | K61: =AVERAGE(E$2:E62) -> 4.661147541
A62: 0.4073960224 | B62: 1.246802 | C62: 6474000 | D62: 20618557 | E62: 3 | G62: 61 | H62: =AVERAGE(B$2:B63) -> 2.24529015 | I62: =AVERAGE(C$2:C63) -> 7015596.774 | J62: =AVERAGE(D$2:D63) -> 56787631.29 | K62: =AVERAGE(E$2:E63) -> 4.62983871
A63: 0.6900597384 | B63: 0.732868 | C63: 5134000 | D63: 12678481 | E63: 2.72 | G63: 62 | H63: =AVERAGE(B$2:B64) -> 2.222336141 | I63: =AVERAGE(C$2:C64) -> 6988793.651 | J63: =AVERAGE(D$2:D64) -> 56107010.33 | K63: =AVERAGE(E$2:E64) -> 4.603968254
A64: 0.9973891473 | B64: 0.7991876 | C64: 5327000 | D64: 13908511 | E64: 3 | G64: 63 | H64: =AVERAGE(B$2:B65) -> 2.212038436 | I64: =AVERAGE(C$2:C65) -> 6992453.125 | J64: =AVERAGE(D$2:D65) -> 55641522.5 | K64: =AVERAGE(E$2:E65) -> 4.59453125
A65: 0.06722921697 | B65: 1.563283 | C65: 7223000 | D65: 26315789 | E65: 4 | G65: 64 | H65: =AVERAGE(B$2:B66) -> 2.236433506 | I65: =AVERAGE(C$2:C66) -> 7049338.462 | J65: =AVERAGE(D$2:D66) -> 56135026.74 | K65: =AVERAGE(E$2:E66) -> 4.631538462
A66: =RAND() -> 0.09477676379 | B66: 3.797718 | C66: 10690000 | D66: 87719298 | E66: 7 | G66: 65 | H66: =AVERAGE(B$2:B67) -> 2.348167983 | I66: =AVERAGE(C$2:C67) -> 7194045.455 | J66: =AVERAGE(D$2:D67) -> 59510253.61 | K66: =AVERAGE(E$2:E67) -> 4.787878788
A67: 0.8949208595 | B67: 9.610909 | C67: 16600000 | D67: 278900000 | E67: 14.95 | G67: 66 | H67: =AVERAGE(B$2:B68) -> 2.334525581 | I67: =AVERAGE(C$2:C68) -> 7190343.284 | J67: =AVERAGE(D$2:D68) -> 58984595.18 | K67: =AVERAGE(E$2:E68) -> 4.776119403
A68: 0.1018970638 | B68: 1.434127 | C68: 6946000 | D68: 24291139 | E68: 4 | G68: 67 | H68: =AVERAGE(B$2:B69) -> 2.306220957 | I68: =AVERAGE(C$2:C69) -> 7142514.706 | J68: =AVERAGE(D$2:D69) -> 58231794.04 | K68: =AVERAGE(E$2:E69) -> 4.735294118
A69: 0.7913897312 | B69: 0.4098112 | C69: 3938000 | D69: 7794117.7 | E69: 2 | G69: 68 | H69: =AVERAGE(B$2:B70) -> 2.280730265 | I69: =AVERAGE(C$2:C70) -> 7105014.493 | J69: =AVERAGE(D$2:D70) -> 57532782.53 | K69: =AVERAGE(E$2:E70) -> 4.695652174
A70: 0.5062699485 | B70: 0.5473632 | C70: 4555000 | D70: 10000000 | E70: 2 | G70: 69 | H70: =AVERAGE(B$2:B71) -> 2.25403168 | I70: =AVERAGE(C$2:C71) -> 7059828.571 | J70: =AVERAGE(D$2:D71) -> 56823667.59 | K70: =AVERAGE(E$2:E71) -> 4.657142857
A71: 0.523056642 | B71: 0.4118293 | C71: 3942000 | D71: 7894736.8 | E71: 2 | G71: 70 | H71: =AVERAGE(B$2:B72) -> 2.230583408 | I71: =AVERAGE(C$2:C72) -> 7026366.197 | J71: =AVERAGE(D$2:D72) -> 56172304.99 | K71: =AVERAGE(E$2:E72) -> 4.61971831
A72: 0.3195171118 | B72: 0.5892044 | C72: 4684000 | D72: 10576923 | E72: 2 | G72: 71 | H72: =AVERAGE(B$2:B73) -> 2.230229194 | I72: =AVERAGE(C$2:C73) -> 7043000 | J72: =AVERAGE(D$2:D73) -> 55892134.09 | K72: =AVERAGE(E$2:E73) -> 4.625
A73: 0.8472206119 | B73: 2.20508 | C73: 8224000 | D73: 36000000 | E73: 5 | G73: 72 | H73: =AVERAGE(B$2:B74) -> 2.224187616 | I73: =AVERAGE(C$2:C74) -> 7050547.945 | J73: =AVERAGE(D$2:D74) -> 55530924.17 | K73: =AVERAGE(E$2:E74) -> 4.616438356
A74: 0.6824698291 | B74: 1.789194 | C74: 7594000 | D74: 29523810 | E74: 4 | G74: 73 | H74: =AVERAGE(B$2:B75) -> 2.203775347 | I74: =AVERAGE(C$2:C75) -> 7023594.595 | J74: =AVERAGE(D$2:D75) -> 54949425.2 | K74: =AVERAGE(E$2:E75) -> 4.582162162
A75: 0.3740196099 | B75: 0.7136797 | C75: 5056000 | D75: 12500000 | E75: 2.08 | G75: 74 | H75: =AVERAGE(B$2:B76) -> 2.202204636 | I75: =AVERAGE(C$2:C76) -> 7036746.667 | J75: =AVERAGE(D$2:D76) -> 54661210.65 | K75: =AVERAGE(E$2:E76) -> 4.587466667
A76: 0.3899412261 | B76: 2.085972 | C76: 8010000 | D76: 33333334 | E76: 4.98 | G76: 75 | H76: =AVERAGE(B$2:B77) -> 2.180897318 | I76: =AVERAGE(C$2:C77) -> 7005447.368 | J76: =AVERAGE(D$2:D77) -> 54079045.6 | K76: =AVERAGE(E$2:E77) -> 4.553421053
A77: 0.006101576917 | B77: 0.5828485 | C77: 4658000 | D77: 10416667 | E77: 2 | G77: 76 | H77: =AVERAGE(B$2:B78) -> 2.252267678 | I77: =AVERAGE(C$2:C78) -> 7110831.169 | J77: =AVERAGE(D$2:D78) -> 55874122.93 | K77: =AVERAGE(E$2:E78) -> 4.65012987
A78: 0.6052263227 | B78: 7.676415 | C78: 15120000 | D78: 192300000 | E78: 12 | G78: 77 | H78: =AVERAGE(B$2:B79) -> 2.233821513 | I78: =AVERAGE(C$2:C79) -> 7088923.077 | J78: =AVERAGE(D$2:D79) -> 55340938.2 | K78: =AVERAGE(E$2:E79) -> 4.628974359
A79: 0.7381102023 | B79: 0.8134668 | C79: 5402000 | D79: 14285714 | E79: 3 | G79: 78 | H79: =AVERAGE(B$2:B80) -> 2.214644405 | I79: =AVERAGE(C$2:C80) -> 7063341.772 | J79: =AVERAGE(D$2:D80) -> 54798647.84 | K79: =AVERAGE(E$2:E80) -> 4.596962025
A80: 0.5215134653 | B80: 0.71883 | C80: 5068000 | D80: 12500000 | E80: 2.1 | G80: 79 | H80: =AVERAGE(B$2:B81) -> 2.192126499 | I80: =AVERAGE(C$2:C81) -> 7024375 | J80: =AVERAGE(D$2:D81) -> 54212771.89 | K80: =AVERAGE(E$2:E81) -> 4.5645
A81: 0.4174706718 | B81: 0.4132119 | C81: 3946000 | D81: 7928571.4 | E81: 2 | G81: 80 | H81: =AVERAGE(B$2:B82) -> 2.201497542 | I81: =AVERAGE(C$2:C82) -> 7055506.173 | J81: =AVERAGE(D$2:D82) -> 54337129.2 | K81: =AVERAGE(E$2:E82) -> 4.582222222
A82: 0.5805016262 | B82: 2.951181 | C82: 9546000 | D82: 64285714 | E82: 6 | G82: 81 | H82: =AVERAGE(B$2:B83) -> 2.181589711 | I82: =AVERAGE(C$2:C83) -> 7025963.415 | J82: =AVERAGE(D$2:D83) -> 53801461.41 | K82: =AVERAGE(E$2:E83) -> 4.550731707
A83: 0.9750885481 | B83: 0.5690554 | C83: 4633000 | D83: 10412371 | E83: 2 | G83: 82 | H83: =AVERAGE(B$2:B84) -> 2.17478898 | I83: =AVERAGE(C$2:C84) -> 7029385.542 | J83: =AVERAGE(D$2:D84) -> 53477679.52 | K83: =AVERAGE(E$2:E84) -> 4.544096386
A84: 0.9127858219 | B84: 1.617129 | C84: 7310000 | D84: 26927564 | E84: 4 | G84: 83 | H84: =AVERAGE(B$2:B85) -> 2.180474135 | I84: =AVERAGE(C$2:C85) -> 7054500 | J84: =AVERAGE(D$2:D85) -> 53466382.57 | K84: =AVERAGE(E$2:E85) -> 4.551666667
A85: 0.9975758607 | B85: 2.652342 | C85: 9139000 | D85: 52528736 | E85: 5.18 | G85: 84 | H85: =AVERAGE(B$2:B86) -> 2.161763538 | I85: =AVERAGE(C$2:C86) -> 7026611.765 | J85: =AVERAGE(D$2:D86) -> 52961800.69 | K85: =AVERAGE(E$2:E86) -> 4.521647059
A86: 0.7669504151 | B86: 0.5900734 | C86: 4684000 | D86: 10576923 | E86: 2 | G86: 85 | H86: =AVERAGE(B$2:B87) -> 2.149234764 | I86: =AVERAGE(C$2:C87) -> 7015848.837 | J86: =AVERAGE(D$2:D87) -> 52561297.41 | K86: =AVERAGE(E$2:E87) -> 4.503953488
A87: 0.7727408734 | B87: 1.084289 | C87: 6101000 | D87: 18518518 | E87: 3 | G87: 86 | H87: =AVERAGE(B$2:B88) -> 2.140572537 | I87: =AVERAGE(C$2:C88) -> 7014080.46 | J87: =AVERAGE(D$2:D88) -> 52230817.25 | K87: =AVERAGE(E$2:E88) -> 4.49816092
A88: 0.6827612132 | B88: 1.395621 | C88: 6862000 | D88: 23809524 | E88: 4 | G88: 87 | H88: =AVERAGE(B$2:B89) -> 2.14831919 | I88: =AVERAGE(C$2:C89) -> 7040909.091 | J88: =AVERAGE(D$2:D89) -> 52310132.12 | K88: =AVERAGE(E$2:E89) -> 4.515227273
A89: 0.2811788199 | B89: 2.822278 | C89: 9375000 | D89: 59210526 | E89: 6 | G89: 88 | H89: =AVERAGE(B$2:B90) -> 2.128759152 | I89: =AVERAGE(C$2:C90) -> 7006000 | J89: =AVERAGE(D$2:D90) -> 51809216.89 | K89: =AVERAGE(E$2:E90) -> 4.486966292
A90: 0.3830557527 | B90: 0.4074758 | C90: 3934000 | D90: 7728676.5 | E90: 2 | G90: 89 | H90: =AVERAGE(B$2:B91) -> 2.189226928 | I90: =AVERAGE(C$2:C91) -> 7095488.889 | J90: =AVERAGE(D$2:D91) -> 53334670.04 | K90: =AVERAGE(E$2:E91) -> 4.570444444
A91: 0.6633891106 | B91: 7.570859 | C91: 15060000 | D91: 189100000 | E91: 12 | G91: 90 | H91: =AVERAGE(B$2:B92) -> 2.181138918 | I91: =AVERAGE(C$2:C92) -> 7094274.725 | J91: =AVERAGE(D$2:D92) -> 53023300.04 | K91: =AVERAGE(E$2:E92) -> 4.564175824
A92: 0.1225676187 | B92: 1.453218 | C92: 6985000 | D92: 25000000 | E92: 4 | G92: 91 | H92: =AVERAGE(B$2:B93) -> 2.172085712 | I92: =AVERAGE(C$2:C93) -> 7090869.565 | J92: =AVERAGE(D$2:D93) -> 52698833.88 | K92: =AVERAGE(E$2:E93) -> 4.557608696
A93: 0.1862294437 | B93: 1.348244 | C93: 6781000 | D93: 23172414 | E93: 3.96 | G93: 92 | H93: =AVERAGE(B$2:B94) -> 2.15446762 | I93: =AVERAGE(C$2:C94) -> 7062967.742 | J93: =AVERAGE(D$2:D94) -> 52238525.02 | K93: =AVERAGE(E$2:E94) -> 4.530107527
A94: 0.924593314 | B94: 0.5336032 | C94: 4496000 | D94: 9890109.9 | E94: 2 | G94: 93 | H94: =AVERAGE(B$2:B95) -> 2.162047741 | I94: =AVERAGE(C$2:C95) -> 7088106.383 | J94: =AVERAGE(D$2:D95) -> 52341552.17 | K94: =AVERAGE(E$2:E95) -> 4.545744681
A95: 0.6480339907 | B95: 2.866999 | C95: 9426000 | D95: 61923077 | E95: 6 | G95: 94 | H95: =AVERAGE(B$2:B96) -> 2.16374106 | I95: =AVERAGE(C$2:C96) -> 7101947.368 | J95: =AVERAGE(D$2:D96) -> 52201215.76 | K95: =AVERAGE(E$2:E96) -> 4.550526316
A96: 0.08952213009 | B96: 2.322913 | C96: 8403000 | D96: 39009593 | E96: 5 | G96: 95 | H96: =AVERAGE(B$2:B97) -> 2.145445634 | I96: =AVERAGE(C$2:C97) -> 7068937.5 | J96: =AVERAGE(D$2:D97) -> 51737945.52 | K96: =AVERAGE(E$2:E97) -> 4.523958333
A97: 0.301589239 | B97: 0.4073802 | C97: 3933000 | D97: 7727272.7 | E97: 2 | G97: 96 | H97: =AVERAGE(B$2:B98) -> 4.588113205 | I97: =AVERAGE(C$2:C98) -> 7430597.938 | J97: =AVERAGE(D$2:D98) -> 162132399.7 | K97: =AVERAGE(E$2:E98) -> 6.054639175
A98: 0.3235770156 | B98: 239.0842 | C98: 42150000 | D98: 10760000000 | E98: 153 | G98: 97 | H98: =AVERAGE(B$2:B99) -> 4.567759642 | I98: =AVERAGE(C$2:C99) -> 7446969.388 | J98: =AVERAGE(D$2:D99) -> 160991276.5 | K98: =AVERAGE(E$2:E99) -> 6.044285714
A99: 0.08087440766 | B99: 2.593464 | C99: 9035000 | D99: 50302326 | E99: 5.04 | G99: 98 | H99: =AVERAGE(B$2:B100) -> 4.607217342 | I99: =AVERAGE(C$2:C100) -> 7530838.384 | J99: =AVERAGE(D$2:D100) -> 161770152.5 | K99: =AVERAGE(E$2:E100) -> 6.114545455
A100: 0.8992996353 | B100: 8.474072 | C100: 15750000 | D100: 238100000 | E100: 13 | G100: 99 | H100: =AVERAGE(B$2:B101) -> 4.572324209 | I100: =AVERAGE(C$2:C101) -> 7517120 | J100: =AVERAGE(D$2:D101) -> 160340951 | K100: =AVERAGE(E$2:E101) -> 6.0834
A101: 0.3555854329 | B101: 1.117904 | C101: 6159000 | D101: 18850000 | E101: 3 | G101: 100 | H101: =AVERAGE(B$2:B102) -> 4.539785573 | I101: =AVERAGE(C$2:C102) -> 7507940.594 | J101: =AVERAGE(D$2:D102) -> 158962575.2 | K101: =AVERAGE(E$2:E102) -> 6.053663366
A102: 0.417971293 | B102: 1.285922 | C102: 6590000 | D102: 21125000 | E102: 3.08 | G102: 101 | H102: =AVERAGE(B$2:B103) -> 4.513853362 | I102: =AVERAGE(C$2:C103) -> 7510019.608 | J102: =AVERAGE(D$2:D103) -> 157710491.2 | K102: =AVERAGE(E$2:E103) -> 6.033529412
A103: 0.5358689459 | B103: 1.8947 | C103: 7720000 | D103: 31250002 | E103: 4 | G103: 102 | H103: =AVERAGE(B$2:B104) -> 6.646830514 | I103: =AVERAGE(C$2:C104) -> 7833223.301 | J103: =AVERAGE(D$2:D104) -> 231577379.6 | K103: =AVERAGE(E$2:E104) -> 7.264660194
A104: 0.1218637789 | B104: 224.2105 | C104: 40800000 | D104: 7766000000 | E104: 132.84 | G104: 103 | H104: =AVERAGE(B$2:B105) -> 6.599645239 | I104: =AVERAGE(C$2:C105) -> 7830413.462 | J104: =AVERAGE(D$2:D105) -> 229630615.6 | K104: =AVERAGE(E$2:E105) -> 7.233269231
A105: 0.1734415012 | B105: 1.739562 | C105: 7541000 | D105: 29113924 | E105: 4 | G105: 104 | H105: =AVERAGE(B$2:B106) -> 6.546517961 | I105: =AVERAGE(C$2:C106) -> 7812752.381 | J105: =AVERAGE(D$2:D106) -> 227607861 | K105: =AVERAGE(E$2:E106) -> 7.192952381
A106: 0.9735471277 | B106: 1.021281 | C106: 5976000 | D106: 17241379 | E106: 3 | G106: 105 | H106: =AVERAGE(B$2:B107) -> 6.501801376 | I106: =AVERAGE(C$2:C107) -> 7810943.396 | J106: =AVERAGE(D$2:D107) -> 225744566.5 | K106: =AVERAGE(E$2:E107) -> 7.162830189
A107: 0.7320748591 | B107: 1.80656 | C107: 7621000 | D107: 30098649 | E107: 4 | G107: 106 | H107: =AVERAGE(B$2:B108) -> 6.447441207 | I107: =AVERAGE(C$2:C108) -> 7784299.065 | J107: =AVERAGE(D$2:D108) -> 223745164.1 | K107: =AVERAGE(E$2:E108) -> 7.114579439
A108: 0.3701691428 | B108: 0.6852633 | C108: 4960000 | D108: 11808511 | E108: 2 | G108: 107 | H108: =AVERAGE(B$2:B109) -> 6.39787752 | I108: =AVERAGE(C$2:C109) -> 7769018.519 | J108: =AVERAGE(D$2:D109) -> 221844917.4 | K108: =AVERAGE(E$2:E109) -> 7.076481481
A109: 0.714311166 | B109: 1.094563 | C109: 6134000 | D109: 18518519 | E109: 3 | G109: 108 | H109: =AVERAGE(B$2:B110) -> 6.347362641 | I109: =AVERAGE(C$2:C110) -> 7749972.477 | J109: =AVERAGE(D$2:D110) -> 219952991.6 | K109: =AVERAGE(E$2:E110) -> 7.039082569
A110: 0.5128869294 | B110: 0.8917557 | C110: 5693000 | D110: 15625000 | E110: 3 | G110: 109 | H110: =AVERAGE(B$2:B111) -> 6.297730883 | I110: =AVERAGE(C$2:C111) -> 7731172.727 | J110: =AVERAGE(D$2:D111) -> 218095464.4 | K110: =AVERAGE(E$2:E111) -> 7.002363636
A111: 0.2302985758 | B111: 0.8878692 | C111: 5682000 | D111: 15625000 | E111: 3 | G111: 110 | H111: =AVERAGE(B$2:B112) -> 6.26050683 | I111: =AVERAGE(C$2:C112) -> 7735189.189 | J111: =AVERAGE(D$2:D112) -> 216448771 | K111: =AVERAGE(E$2:E112) -> 6.984324324
A112: 0.6065548426 | B112: 2.165861 | C112: 8177000 | D112: 35312500 | E112: 5 | G112: 111 | H112: =AVERAGE(B$2:B113) -> 6.208929547 | I112: =AVERAGE(C$2:C113) -> 7704321.429 | J112: =AVERAGE(D$2:D113) -> 214597361.7 | K112: =AVERAGE(E$2:E113) -> 6.939821429
A113: 0.5560869704 | B113: 0.4838512 | C113: 4278000 | D113: 9090927.3 | E113: 2 | G113: 112 | H113: =AVERAGE(B$2:B114) -> 6.169777649 | I113: =AVERAGE(C$2:C114) -> 7703203.54 | J113: =AVERAGE(D$2:D114) -> 212958551.1 | K113: =AVERAGE(E$2:E114) -> 6.91380531
A114: 0.9292385211 | B114: 1.784765 | C114: 7578000 | D114: 29411766 | E114: 4 | G114: 113 | H114: =AVERAGE(B$2:B115) -> 6.123729432 | I114: =AVERAGE(C$2:C115) -> 7686087.719 | J114: =AVERAGE(D$2:D115) -> 211228338.2 | K114: =AVERAGE(E$2:E115) -> 6.879473684
A115: 0.5942143236 | B115: 0.920281 | C115: 5752000 | D115: 15714286 | E115: 3 | G115: 114 | H115: =AVERAGE(B$2:B116) -> 6.092703768 | I115: =AVERAGE(C$2:C116) -> 7696313.043 | J115: =AVERAGE(D$2:D116) -> 209807719.2 | K115: =AVERAGE(E$2:E116) -> 6.863130435
A116: 0.8170325473 | B116: 2.555778 | C116: 8862000 | D116: 47857143 | E116: 5 | G116: 115 | H116: =AVERAGE(B$2:B117) -> 6.07639202 | I116: =AVERAGE(C$2:C117) -> 7726344.828 | J116: =AVERAGE(D$2:D117) -> 208813931.1 | K116: =AVERAGE(E$2:E117) -> 6.872586207
A117: 0.3761105316 | B117: 4.200541 | C117: 11180000 | D117: 94528302 | E117: 7.96 | G117: 116 | H117: =AVERAGE(B$2:B118) -> 6.046308413 | I117: =AVERAGE(C$2:C118) -> 7736085.47 | J117: =AVERAGE(D$2:D118) -> 207439453 | K117: =AVERAGE(E$2:E118) -> 6.856581197
A118: 0.1341057657 | B118: 2.55661 | C118: 8866000 | D118: 48000000 | E118: 5 | G118: 117 | H118: =AVERAGE(B$2:B119) -> 6.001916447 | I118: =AVERAGE(C$2:C119) -> 7716008.475 | J118: =AVERAGE(D$2:D119) -> 205802066.5 | K118: =AVERAGE(E$2:E119) -> 6.823898305
A119: 0.9423152008 | B119: 0.8080565 | C119: 5367000 | D119: 14227848 | E119: 3 | G119: 118 | H119: =AVERAGE(B$2:B120) -> 5.956221585 | I119: =AVERAGE(C$2:C120) -> 7689941.176 | J119: =AVERAGE(D$2:D120) -> 204159270 | K119: =AVERAGE(E$2:E120) -> 6.783361345
A120: 0.2915166958 | B120: 0.5642278 | C120: 4614000 | D120: 10309278 | E120: 2 | G120: 119 | H120: =AVERAGE(B$2:B121) -> 5.915775297 | I120: =AVERAGE(C$2:C121) -> 7677033.333 | J120: =AVERAGE(D$2:D121) -> 202612614.5 | K120: =AVERAGE(E$2:E121) -> 6.751833333
A121: 0.5059674465 | B121: 1.102667 | C121: 6141000 | D121: 18560606 | E121: 3 | G121: 120 | H121: =AVERAGE(B$2:B122) -> 5.869950405 | I121: =AVERAGE(C$2:C122) -> 7644735.537 | J121: =AVERAGE(D$2:D122) -> 200997098.1 | K121: =AVERAGE(E$2:E122) -> 6.712561983
A122: 0.6188463573 | B122: 0.3709634 | C122: 3769000 | D122: 7135135.2 | E122: 2 | G122: 121 | H122: =AVERAGE(B$2:B123) -> 5.825022466 | I122: =AVERAGE(C$2:C123) -> 7613467.213 | J122: =AVERAGE(D$2:D123) -> 199409850.9 | K122: =AVERAGE(E$2:E123) -> 6.673934426
A123: 0.8039080297 | B123: 0.3887418 | C123: 3830000 | D123: 7352940.8 | E123: 2 | G123: 122 | H123: =AVERAGE(B$2:B124) -> 5.78785934 | I123: =AVERAGE(C$2:C124) -> 7604471.545 | J123: =AVERAGE(D$2:D124) -> 197958009.3 | K123: =AVERAGE(E$2:E124) -> 6.644065041
A124: 0.8240455145 | B124: 1.253958 | C124: 6507000 | D124: 20833333 | E124: 3 | G124: 123 | H124: =AVERAGE(B$2:B125) -> 5.744900369 | I124: =AVERAGE(C$2:C125) -> 7577072.581 | J124: =AVERAGE(D$2:D125) -> 196432513.7 | K124: =AVERAGE(E$2:E125) -> 6.606612903
A125: 0.8717435748 | B125: 0.460947 | C125: 4207000 | D125: 8796551.8 | E125: 2 | G125: 124 | H125: =AVERAGE(B$2:B126) -> 5.706737771 | I125: =AVERAGE(C$2:C126) -> 7563472 | J125: =AVERAGE(D$2:D126) -> 194994386.9 | K125: =AVERAGE(E$2:E126) -> 6.57776
A126: 0.8338427271 | B126: 0.9745756 | C126: 5877000 | D126: 16666666 | E126: 3 | G126: 125 | H126: =AVERAGE(B$2:B127) -> 5.666613265 | I126: =AVERAGE(C$2:C127) -> 7542126.984 | J126: =AVERAGE(D$2:D127) -> 193537000 | K126: =AVERAGE(E$2:E127) -> 6.541428571
A127: 0.5567177784 | B127: 0.65105 | C127: 4874000 | D127: 11363636 | E127: 2 | G127: 126 | H127: =AVERAGE(B$2:B128) -> 5.633356239 | I127: =AVERAGE(C$2:C128) -> 7537519.685 | J127: =AVERAGE(D$2:D128) -> 192207221.8 | K127: =AVERAGE(E$2:E128) -> 6.521417323
A128: 0.9785361394 | B128: 1.442971 | C128: 6957000 | D128: 24655172 | E128: 4 | G128: 127 | H128: =AVERAGE(B$2:B129) -> 5.595053213 | I128: =AVERAGE(C$2:C129) -> 7518531.25 | J128: =AVERAGE(D$2:D129) -> 190804381.6 | K128: =AVERAGE(E$2:E129) -> 6.48921875
A129: 0.03081081513 | B129: 0.7305688 | C129: 5107000 | D129: 12643677 | E129: 2.4 | G129: 128 | H129: =AVERAGE(B$2:B130) -> 5.58065894 | I129: =AVERAGE(C$2:C130) -> 7542418.605 | J129: =AVERAGE(D$2:D130) -> 189979055.8 | K129: =AVERAGE(E$2:E130) -> 6.493178295
A130: =RAND() -> 0.2101257327 | B130: 3.738192 | C130: 10600000 | D130: 84337349 | E130: 7 | G130: 129 | H130: =AVERAGE(B$2:B131) -> 5.567382971 | I130: =AVERAGE(C$2:C131) -> 7567707.692 | J130: =AVERAGE(D$2:D131) -> 189209554 | K130: =AVERAGE(E$2:E131) -> 6.497076923
A131: 0.49786797 | B131: 3.854783 | C131: 10830000 | D131: 89943820 | E131: 7 | G131: 130 | H131: =AVERAGE(B$2:B132) -> 5.530680647 | I131: =AVERAGE(C$2:C132) -> 7549664.122 | J131: =AVERAGE(D$2:D132) -> 187865648.2 | K131: =AVERAGE(E$2:E132) -> 6.470305344
A132: 0.7626129282 | B132: 0.7593786 | C132: 5204000 | D132: 13157895 | E132: 2.99 | G132: 131 | H132: =AVERAGE(B$2:B133) -> 5.500244332 | I132: =AVERAGE(C$2:C133) -> 7546356.061 | J132: =AVERAGE(D$2:D133) -> 186633711.5 | K132: =AVERAGE(E$2:E133) -> 6.451590909
A133: 0.5480687745 | B133: 1.513087 | C133: 7113000 | D133: 25250000 | E133: 4 | G133: 132 | H133: =AVERAGE(B$2:B134) -> 5.462014885 | I133: =AVERAGE(C$2:C134) -> 7519466.165 | J133: =AVERAGE(D$2:D134) -> 185290123.5 | K133: =AVERAGE(E$2:E134) -> 6.418120301
A134: 0.7453962958 | B134: 0.4157279 | C134: 3970000 | D134: 7936507.9 | E134: 2 | G134: 133 | H134: =AVERAGE(B$2:B135) -> 5.42503247 | I134: =AVERAGE(C$2:C135) -> 7496067.164 | J134: =AVERAGE(D$2:D135) -> 183977764.1 | K134: =AVERAGE(E$2:E135) -> 6.385149254
A135: 0.4977332498 | B135: 0.5063713 | C135: 4384000 | D135: 9433962.7 | E135: 2 | G135: 134 | H135: =AVERAGE(B$2:B136) -> 5.391091979 | I135: =AVERAGE(C$2:C136) -> 7481385.185 | J135: =AVERAGE(D$2:D136) -> 182722178.3 | K135: =AVERAGE(E$2:E136) -> 6.360074074
A136: 0.6711510263 | B136: 0.8430662 | C136: 5514000 | D136: 14473684 | E136: 3 | G136: 135 | H136: =AVERAGE(B$2:B137) -> 5.356006899 | I136: =AVERAGE(C$2:C137) -> 7461470.588 | J136: =AVERAGE(D$2:D137) -> 181457414.4 | K136: =AVERAGE(E$2:E137) -> 6.328014706
A137: 0.872273314 | B137: 0.619521 | C137: 4773000 | D137: 10714286 | E137: 2 | G137: 136 | H137: =AVERAGE(B$2:B138) -> 5.322955317 | I137: =AVERAGE(C$2:C138) -> 7446875.912 | J137: =AVERAGE(D$2:D138) -> 180237183 | K137: =AVERAGE(E$2:E138) -> 6.303722628
A138: 0.1603279029 | B138: 0.8279402 | C138: 5462000 | D138: 14285714 | E138: 3 | G138: 137 | H138: =AVERAGE(B$2:B139) -> 5.29049543 | I138: =AVERAGE(C$2:C139) -> 7432884.058 | J138: =AVERAGE(D$2:D139) -> 179036896.9 | K138: =AVERAGE(E$2:E139) -> 6.279782609
A139: 0.7800325858 | B139: 0.843491 | C139: 5516000 | D139: 14597701 | E139: 3 | G139: 138 | H139: =AVERAGE(B$2:B140) -> 5.259756312 | I139: =AVERAGE(C$2:C140) -> 7422345.324 | J139: =AVERAGE(D$2:D140) -> 177872900.3 | K139: =AVERAGE(E$2:E140) -> 6.25618705
A140: 0.5407542682 | B140: 1.017758 | C140: 5968000 | D140: 17241379 | E140: 3 | G140: 139 | H140: =AVERAGE(B$2:B141) -> 5.2249897 | I140: =AVERAGE(C$2:C141) -> 7396892.857 | J140: =AVERAGE(D$2:D141) -> 176655745.8 | K140: =AVERAGE(E$2:E141) -> 6.225785714
A141: 0.5404255909 | B141: 0.3924306 | C141: 3859000 | D141: 7471264.4 | E141: 2 | G141: 140 | H141: =AVERAGE(B$2:B142) -> 5.190761667 | I141: =AVERAGE(C$2:C142) -> 7372085.106 | J141: =AVERAGE(D$2:D142) -> 175456596.9 | K141: =AVERAGE(E$2:E142) -> 6.195815603
A142: 0.8512975746 | B142: 0.3988371 | C142: 3899000 | D142: 7575757.6 | E142: 2 | G142: 141 | H142: =AVERAGE(B$2:B143) -> 5.170705395 | I142: =AVERAGE(C$2:C143) -> 7379464.789 | J142: =AVERAGE(D$2:D143) -> 174499639.8 | K142: =AVERAGE(E$2:E143) -> 6.187394366
A143: 0.7554055639 | B143: 2.342771 | C143: 8420000 | D143: 39568681 | E143: 5 | G143: 142 | H143: =AVERAGE(B$2:B144) -> 5.140686603 | I143: =AVERAGE(C$2:C144) -> 7367426.573 | J143: =AVERAGE(D$2:D144) -> 173388488.5 | K143: =AVERAGE(E$2:E144) -> 6.165104895
A144: 0.7813855176 | B144: 0.8780181 | C144: 5658000 | D144: 15605000 | E144: 3 | G144: 143 | H144: =AVERAGE(B$2:B145) -> 5.111080564 | I144: =AVERAGE(C$2:C145) -> 7355513.889 | J144: =AVERAGE(D$2:D145) -> 172292313.7 | K144: =AVERAGE(E$2:E145) -> 6.143125
A145: 0.07471180095 | B145: 0.877417 | C145: 5652000 | D145: 15539326 | E145: 3 | G145: 144 | H145: =AVERAGE(B$2:B146) -> 5.079669031 | I145: =AVERAGE(C$2:C146) -> 7336393.103 | J145: =AVERAGE(D$2:D146) -> 171173929.4 | K145: =AVERAGE(E$2:E146) -> 6.114551724
A146: 0.5554723513 | B146: 0.5564083 | C146: 4583000 | D146: 10126582 | E146: 2 | G146: 145 | H146: =AVERAGE(B$2:B147) -> 5.065876325 | I146: =AVERAGE(C$2:C147) -> 7352321.918 | J146: =AVERAGE(D$2:D147) -> 170475128 | K146: =AVERAGE(E$2:E147) -> 6.113767123
A147: 0.2836222809 | B147: 3.065934 | C147: 9662000 | D147: 69148936 | E147: 6 | G147: 146 | H147: =AVERAGE(B$2:B148) -> 5.064329017 | I147: =AVERAGE(C$2:C148) -> 7384959.184 | J147: =AVERAGE(D$2:D148) -> 170052848.3 | K147: =AVERAGE(E$2:E148) -> 6.126938776
A148: 0.8830886166 | B148: 4.838422 | C148: 12150000 | D148: 108400000 | E148: 8.05 | G148: 147 | H148: =AVERAGE(B$2:B149) -> 5.033034629 | I148: =AVERAGE(C$2:C149) -> 7362554.054 | J148: =AVERAGE(D$2:D149) -> 168959679.2 | K148: =AVERAGE(E$2:E149) -> 6.099054054
A149: 0.9741147096 | B149: 0.4327596 | C149: 4069000 | D149: 8263829.8 | E149: 2 | G149: 148 | H149: =AVERAGE(B$2:B150) -> 5.004487248 | I149: =AVERAGE(C$2:C150) -> 7348456.376 | J149: =AVERAGE(D$2:D150) -> 167916416.4 | K149: =AVERAGE(E$2:E150) -> 6.078255034
A150: 0.1702698274 | B150: 0.7794748 | C150: 5262000 | D150: 13513514 | E150: 3 | G150: 149 | H150: =AVERAGE(B$2:B151) -> 4.975951101 | I150: =AVERAGE(C$2:C151) -> 7333380 | J150: =AVERAGE(D$2:D151) -> 166880306.9 | K150: =AVERAGE(E$2:E151) -> 6.0524
A151: 0.6485960323 | B151: 0.7240652 | C151: 5087000 | D151: 12500000 | E151: 2.2 | G151: 150 | H151: =AVERAGE(B$2:B152) -> 4.959232497 | I151: =AVERAGE(C$2:C152) -> 7342172.185 | J151: =AVERAGE(D$2:D152) -> 166061619.5 | K151: =AVERAGE(E$2:E152) -> 6.045430464
A152: 0.1912155213 | B152: 2.451442 | C152: 8661000 | D152: 43258511 | E152: 5 | G152: 151 | H152: =AVERAGE(B$2:B153) -> 4.930804939 | I152: =AVERAGE(C$2:C153) -> 7325671.053 | J152: =AVERAGE(D$2:D153) -> 165042428.5 | K152: =AVERAGE(E$2:E153) -> 6.018815789
A153: 0.4931220016 | B153: 0.6382436 | C153: 4834000 | D153: 11144578 | E153: 2 | G153: 152 | H153: =AVERAGE(B$2:B154) -> 4.90114788 | I153: =AVERAGE(C$2:C154) -> 7303045.752 | J153: =AVERAGE(D$2:D154) -> 164012739.4 | K153: =AVERAGE(E$2:E154) -> 5.99254902
A154: 0.7114864419 | B154: 0.393275 | C154: 3864000 | D154: 7500000 | E154: 2 | G154: 153 | H154: =AVERAGE(B$2:B155) -> 4.87208256 | I154: =AVERAGE(C$2:C155) -> 7281740.26 | J154: =AVERAGE(D$2:D155) -> 163000242.6 | K154: =AVERAGE(E$2:E155) -> 5.966623377
A155: 0.3002301307 | B155: 0.4250886 | C155: 4022000 | D155: 8088235.3 | E155: 2 | G155: 154 | H155: =AVERAGE(B$2:B156) -> 4.843204333 | I155: =AVERAGE(C$2:C156) -> 7259825.806 | J155: =AVERAGE(D$2:D156) -> 161997504 | K155: =AVERAGE(E$2:E156) -> 5.941032258
A156: 0.3696772672 | B156: 0.3959573 | C156: 3885000 | D156: 7575757.6 | E156: 2 | G156: 155 | H156: =AVERAGE(B$2:B157) -> 4.816287483 | I156: =AVERAGE(C$2:C157) -> 7244442.308 | J156: =AVERAGE(D$2:D157) -> 161031752.1 | K156: =AVERAGE(E$2:E157) -> 5.915769231
A157: 0.05885955787 | B157: 0.6441758 | C157: 4860000 | D157: 11340206 | E157: 2 | G157: 156 | H157: =AVERAGE(B$2:B158) -> 4.807496009 | I157: =AVERAGE(C$2:C158) -> 7263076.433 | J157: =AVERAGE(D$2:D158) -> 160496028 | K157: =AVERAGE(E$2:E158) -> 5.918343949
A158: 0.3469985222 | B158: 3.436026 | C158: 10170000 | D158: 76923077 | E158: 6.32 | G158: 157 | H158: =AVERAGE(B$2:B159) -> 4.790833243 | I158: =AVERAGE(C$2:C159) -> 7268905.063 | J158: =AVERAGE(D$2:D159) -> 159705386.8 | K158: =AVERAGE(E$2:E159) -> 5.912531646
A159: 0.4414092204 | B159: 2.174779 | C159: 8184000 | D159: 35574713 | E159: 5 | G159: 158 | H159: =AVERAGE(B$2:B160) -> 4.763125727 | I159: =AVERAGE(C$2:C160) -> 7247176.101 | J159: =AVERAGE(D$2:D160) -> 158746690.8 | K159: =AVERAGE(E$2:E160) -> 5.887924528
A160: 0.3755937256 | B160: 0.3853382 | C160: 3814000 | D160: 7272727.3 | E160: 2 | G160: 159 | H160: =AVERAGE(B$2:B161) -> 4.738811868 | I160: =AVERAGE(C$2:C161) -> 7237000 | J160: =AVERAGE(D$2:D161) -> 157850788.4 | K160: =AVERAGE(E$2:E161) -> 5.869875
A161: 0.4575182345 | B161: 0.8729083 | C161: 5619000 | D161: 15402299 | E161: 3 | G161: 160 | H161: =AVERAGE(B$2:B162) -> 4.755960006 | I161: =AVERAGE(C$2:C162) -> 7285279.503 | J161: =AVERAGE(D$2:D162) -> 158028733.8 | K161: =AVERAGE(E$2:E162) -> 5.907950311
A162: 0.6207122474 | B162: 7.499662 | C162: 15010000 | D162: 186500000 | E162: 12 | G162: 161 | H162: =AVERAGE(B$2:B163) -> 4.734201185 | I162: =AVERAGE(C$2:C163) -> 7279845.679 | J162: =AVERAGE(D$2:D163) -> 157177409.8 | K162: =AVERAGE(E$2:E163) -> 5.89
A163: 0.2370073693 | B163: 1.231031 | C163: 6405000 | D163: 20114245 | E163: 3 | G163: 162 | H163: =AVERAGE(B$2:B164) -> 4.7084639 | I163: =AVERAGE(C$2:C164) -> 7262957.055 | J163: =AVERAGE(D$2:D164) -> 156274480.9 | K163: =AVERAGE(E$2:E164) -> 5.866134969
A164: 0.4952028224 | B164: 0.5390238 | C164: 4527000 | D164: 10000000 | E164: 2 | G164: 163 | H164: =AVERAGE(B$2:B165) -> 4.684210384 | I164: =AVERAGE(C$2:C165) -> 7249823.171 | J164: =AVERAGE(D$2:D165) -> 155398683.3 | K164: =AVERAGE(E$2:E165) -> 5.845
A165: 0.2947798535 | B165: 0.7308873 | C165: 5109000 | D165: 12643678 | E165: 2.4 | G165: 164 | H165: =AVERAGE(B$2:B166) -> 5.084143836 | I165: =AVERAGE(C$2:C166) -> 7408369.697 | J165: =AVERAGE(D$2:D166) -> 180244751.9 | K165: =AVERAGE(E$2:E166) -> 6.415636364
A166: 0.6187292774 | B166: 70.67323 | C166: 33410000 | D166: 4255000000 | E166: 100 | G166: 165 | H166: =AVERAGE(B$2:B167) -> 5.055661692 | I166: =AVERAGE(C$2:C167) -> 7386078.313 | J166: =AVERAGE(D$2:D167) -> 179200051.4 | K166: =AVERAGE(E$2:E167) -> 6.389036145
A167: 0.6572555194 | B167: 0.3561079 | C167: 3708000 | D167: 6824468.1 | E167: 2 | G167: 166 | H167: =AVERAGE(B$2:B168) -> 5.033693538 | I167: =AVERAGE(C$2:C168) -> 7382790.419 | J167: =AVERAGE(D$2:D168) -> 178269569.2 | K167: =AVERAGE(E$2:E168) -> 6.374670659
A168: 0.9598830436 | B168: 1.38698 | C168: 6837000 | D168: 23809523 | E168: 3.99 | G168: 167 | H168: =AVERAGE(B$2:B169) -> 5.006776977 | I168: =AVERAGE(C$2:C169) -> 7365059.524 | J168: =AVERAGE(D$2:D169) -> 177265156.9 | K168: =AVERAGE(E$2:E169) -> 6.348630952
A169: 0.02625922834 | B169: 0.5117113 | C169: 4404000 | D169: 9528301.9 | E169: 2 | G169: 168 | H169: =AVERAGE(B$2:B170) -> 4.988264114 | I169: =AVERAGE(C$2:C170) -> 7367017.751 | J169: =AVERAGE(D$2:D170) -> 176401161.9 | K169: =AVERAGE(E$2:E170) -> 6.334733728
A170: 0.8577562388 | B170: 1.878103 | C170: 7696000 | D170: 31250000 | E170: 4 | G170: 169 | H170: =AVERAGE(B$2:B171) -> 4.964397612 | I170: =AVERAGE(C$2:C171) -> 7357652.941 | J170: =AVERAGE(D$2:D171) -> 175456387.2 | K170: =AVERAGE(E$2:E171) -> 6.315117647
A171: 0.4600593042 | B171: 0.9309589 | C171: 5775000 | D171: 15789474 | E171: 3 | G171: 170 | H171: =AVERAGE(B$2:B172) -> 4.937416119 | I171: =AVERAGE(C$2:C172) -> 7336187.135 | J171: =AVERAGE(D$2:D172) -> 174469312.9 | K171: =AVERAGE(E$2:E172) -> 6.289883041
A172: 0.05227260646 | B172: 0.3505622 | C172: 3687000 | D172: 6666666.7 | E172: 2 | G172: 171 | H172: =AVERAGE(B$2:B173) -> 4.912721055 | I172: =AVERAGE(C$2:C173) -> 7322476.744 | J172: =AVERAGE(D$2:D173) -> 173525004 | K172: =AVERAGE(E$2:E173) -> 6.265
A173: 0.2035419809 | B173: 0.6898652 | C173: 4978000 | D173: 12048193 | E173: 2.01 | G173: 172 | H173: =AVERAGE(B$2:B174) -> 4.892104332 | I173: =AVERAGE(C$2:C174) -> 7319265.896 | J173: =AVERAGE(D$2:D174) -> 172655649 | K173: =AVERAGE(E$2:E174) -> 6.251676301
A174: 0.7358548281 | B174: 1.346028 | C174: 6767000 | D174: 23126582 | E174: 3.96 | G174: 173 | H174: =AVERAGE(B$2:B175) -> 4.867760752 | I174: =AVERAGE(C$2:C175) -> 7305281.609 | J174: =AVERAGE(D$2:D175) -> 171728683.4 | K174: =AVERAGE(E$2:E175) -> 6.227241379
A175: 0.1775902355 | B175: 0.6563213 | C175: 4886000 | D175: 11363636 | E175: 2 | G175: 174 | H175: =AVERAGE(B$2:B176) -> 4.842202565 | I175: =AVERAGE(C$2:C176) -> 7285720 | J175: =AVERAGE(D$2:D176) -> 170790666.7 | K175: =AVERAGE(E$2:E176) -> 6.203085714
A176: 0.8163288772 | B176: 0.395078 | C176: 3882000 | D176: 7575757.6 | E176: 2 | G176: 175 | H176: =AVERAGE(B$2:B177) -> 4.818363587 | I176: =AVERAGE(C$2:C177) -> 7271977.273 | J176: =AVERAGE(D$2:D177) -> 169884831.3 | K176: =AVERAGE(E$2:E177) -> 6.179204545
A177: 0.218778732 | B177: 0.6465426 | C177: 4867000 | D177: 11363634 | E177: 2 | G177: 176 | H177: =AVERAGE(B$2:B178) -> 4.830647901 | I177: =AVERAGE(C$2:C178) -> 7311514.124 | J177: =AVERAGE(D$2:D178) -> 169890566.7 | K177: =AVERAGE(E$2:E178) -> 6.206440678
A178: 0.6816912969 | B178: 6.992687 | C178: 14270000 | D178: 170900000 | E178: 11 | G178: 177 | H178: =AVERAGE(B$2:B179) -> 4.806542449 | I178: =AVERAGE(C$2:C179) -> 7295882.022 | J178: =AVERAGE(D$2:D179) -> 168992305.1 | K178: =AVERAGE(E$2:E179) -> 6.182808989
A179: 0.9709516398 | B179: 0.5398775 | C179: 4529000 | D179: 10000000 | E179: 2 | G179: 178 | H179: =AVERAGE(B$2:B180) -> 4.787450435 | I179: =AVERAGE(C$2:C180) -> 7293340.782 | J179: =AVERAGE(D$2:D180) -> 168181228.1 | K179: =AVERAGE(E$2:E180) -> 6.170558659
A180: 0.1677186903 | B180: 1.389072 | C180: 6841000 | D180: 23809524 | E180: 3.99 | G180: 179 | H180: =AVERAGE(B$2:B181) -> 4.828080433 | I180: =AVERAGE(C$2:C181) -> 7353100 | J180: =AVERAGE(D$2:D181) -> 169185221.2 | K180: =AVERAGE(E$2:E181) -> 6.241833333
A181: 0.8772792857 | B181: 12.10085 | C181: 18050000 | D181: 348900000 | E181: 19 | G181: 180 | H181: =AVERAGE(B$2:B182) -> 4.804211955 | I181: =AVERAGE(C$2:C182) -> 7336729.282 | J181: =AVERAGE(D$2:D182) -> 168302758.5 | K181: =AVERAGE(E$2:E182) -> 6.21839779
A182: 0.8919267523 | B182: 0.5078859 | C182: 4390000 | D182: 9459459.5 | E182: 2 | G182: 181 | H182: =AVERAGE(B$2:B183) -> 4.790907081 | I182: =AVERAGE(C$2:C183) -> 7343043.956 | J182: =AVERAGE(D$2:D183) -> 167601126.9 | K182: =AVERAGE(E$2:E183) -> 6.211703297
A183: 0.2323842362 | B183: 2.382725 | C183: 8486000 | D183: 40605814 | E183: 5 | G183: 182 | H183: =AVERAGE(B$2:B184) -> 4.780115518 | I183: =AVERAGE(C$2:C184) -> 7354087.432 | J183: =AVERAGE(D$2:D184) -> 167005952.5 | K183: =AVERAGE(E$2:E184) -> 6.210546448
A184: 0.2496833024 | B184: 2.816051 | C184: 9364000 | D184: 58684211 | E184: 6 | G184: 183 | H184: =AVERAGE(B$2:B185) -> 4.757767492 | I184: =AVERAGE(C$2:C185) -> 7340880.435 | J184: =AVERAGE(D$2:D185) -> 166161151.1 | K184: =AVERAGE(E$2:E185) -> 6.187663043
A185: 0.4755118945 | B185: 0.6680788 | C185: 4924000 | D185: 11562500 | E185: 2 | G185: 184 | H185: =AVERAGE(B$2:B186) -> 4.74010449 | I185: =AVERAGE(C$2:C186) -> 7339405.405 | J185: =AVERAGE(D$2:D186) -> 165398117.9 | K185: =AVERAGE(E$2:E186) -> 6.175837838
A186: 0.9622278995 | B186: 1.490112 | C186: 7068000 | D186: 25000000 | E186: 4 | G186: 185 | H186: =AVERAGE(B$2:B187) -> 4.718874916 | I186: =AVERAGE(C$2:C187) -> 7328403.226 | J186: =AVERAGE(D$2:D187) -> 164582805.4 | K186: =AVERAGE(E$2:E187) -> 6.158763441
A187: 0.3431040846 | B187: 0.7914037 | C187: 5293000 | D187: 13750000 | E187: 3 | G187: 186 | H187: =AVERAGE(B$2:B188) -> 4.699435563 | I187: =AVERAGE(C$2:C188) -> 7321834.225 | J187: =AVERAGE(D$2:D188) -> 163801712.8 | K187: =AVERAGE(E$2:E188) -> 6.141871658
A188: 0.7942179139 | B188: 1.083716 | C188: 6100000 | D188: 18518489 | E188: 3 | G188: 187 | H188: =AVERAGE(B$2:B189) -> 4.704157374 | I188: =AVERAGE(C$2:C189) -> 7351505.319 | J188: =AVERAGE(D$2:D189) -> 163659682.4 | K188: =AVERAGE(E$2:E189) -> 6.157287234
A189: 0.01637568946 | B189: 5.587136 | C189: 12900000 | D189: 137100000 | E189: 9.04 | G189: 188 | H189: =AVERAGE(B$2:B190) -> 4.681913433 | I189: =AVERAGE(C$2:C190) -> 7335608.466 | J189: =AVERAGE(D$2:D190) -> 162843673.3 | K189: =AVERAGE(E$2:E190) -> 6.135291005
A190: 0.1115946 | B190: 0.5000526 | C190: 4347000 | D190: 9433962.2 | E190: 2 | G190: 189 | H190: =AVERAGE(B$2:B191) -> 4.660536546 | I190: =AVERAGE(C$2:C191) -> 7322131.579 | J190: =AVERAGE(D$2:D191) -> 162042992.4 | K190: =AVERAGE(E$2:E191) -> 6.113526316
A191: 0.5983535097 | B191: 0.6203049 | C191: 4775000 | D191: 10714286 | E191: 2 | G191: 190 | H191: =AVERAGE(B$2:B192) -> 4.639671116 | I191: =AVERAGE(C$2:C192) -> 7309659.686 | J191: =AVERAGE(D$2:D192) -> 161255663.7 | K191: =AVERAGE(E$2:E192) -> 6.091989529
A192: 0.5533979501 | B192: 0.6752394 | C192: 4940000 | D192: 11663218 | E192: 2 | G192: 191 | H192: =AVERAGE(B$2:B193) -> 4.816168246 | I192: =AVERAGE(C$2:C193) -> 7411640.625 | J192: =AVERAGE(D$2:D193) -> 168728290.4 | K192: =AVERAGE(E$2:E193) -> 6.30453125
A193: 0.4246664344 | B193: 38.52712 | C193: 26890000 | D193: 1596000000 | E193: 46.9 | G193: 192 | H193: =AVERAGE(B$2:B194) -> 4.798658944 | I193: =AVERAGE(C$2:C194) -> 7409264.249 | J193: =AVERAGE(D$2:D194) -> 167980134.4 | K193: =AVERAGE(E$2:E194) -> 6.292590674
A194: =RAND() -> 0.9592014095 | B194: 1.436873 | C194: 6953000 | D194: 24334177 | E194: 4 | G194: 193 | H194: =AVERAGE(B$2:B195) -> 4.777632924 | I194: =AVERAGE(C$2:C195) -> 7397226.804 | J194: =AVERAGE(D$2:D195) -> 167178690.4 | K194: =AVERAGE(E$2:E195) -> 6.271082474
A195: 0.3053478938 | B195: 0.7196111 | C195: 5074000 | D195: 12500000 | E195: 2.12 | G195: 194 | H195: =AVERAGE(B$2:B196) -> 4.755185877 | I195: =AVERAGE(C$2:C196) -> 7379328.205 | J195: =AVERAGE(D$2:D196) -> 166360213.8 | K195: =AVERAGE(E$2:E196) -> 6.249179487
A196: 0.09714940772 | B196: 0.4004588 | C196: 3907000 | D196: 7575757.8 | E196: 2 | G196: 195 | H196: =AVERAGE(B$2:B197) -> 4.734225093 | I196: =AVERAGE(C$2:C197) -> 7366515.306 | J196: =AVERAGE(D$2:D197) -> 165569415 | K196: =AVERAGE(E$2:E197) -> 6.2275
A197: 0.7728658013 | B197: 0.6468721 | C197: 4868000 | D197: 11363636 | E197: 2 | G197: 196 | H197: =AVERAGE(B$2:B198) -> 4.712013902 | I197: =AVERAGE(C$2:C198) -> 7347969.543 | J197: =AVERAGE(D$2:D198) -> 164764172.8 | K197: =AVERAGE(E$2:E198) -> 6.206040609
A198: 0.1798522328 | B198: 0.3586204 | C198: 3713000 | D198: 6936708.9 | E198: 2 | G198: 197 | H198: =AVERAGE(B$2:B199) -> 4.710808887 | I198: =AVERAGE(C$2:C199) -> 7368787.879 | J198: =AVERAGE(D$2:D199) -> 164437081 | K198: =AVERAGE(E$2:E199) -> 6.21510101
A199: 0.8339796093 | B199: 4.473421 | C199: 11470000 | D199: 100000000 | E199: 8 | G199: 198 | H199: =AVERAGE(B$2:B200) -> 4.709338978 | I199: =AVERAGE(C$2:C200) -> 7388944.724 | J199: =AVERAGE(D$2:D200) -> 164109963.3 | K199: =AVERAGE(E$2:E200) -> 6.224070352
A200: 0.8330671685 | B200: 4.418297 | C200: 11380000 | D200: 99340659 | E200: 8 | G200: 199 | H200: =AVERAGE(B$2:B201) -> 4.688487508 | I200: =AVERAGE(C$2:C201) -> 7374635 | J200: =AVERAGE(D$2:D201) -> 163339413.5 | K200: =AVERAGE(E$2:E201) -> 6.20295
... 2800 more rows

Sheet about
B1: Crop insurance claims by county - year; 1980 - 2008
B3: GDP Deflator from BEA, NIPA Table 1.1.4, Price Index for GDP
B4: http://www.bea.gov/national/nipaweb/SelectTable.asp?Selected=N
B6: Sheldus fatalities from natural disasters 1960 - 2000
B7: Sheldus property damage from natural disasters 1960 - 2008
B8: http://webra.cas.sc.edu/hvri/products/sheldus.aspx
B10: From all data, the 3000 most severe have been selected.

Sheet Sheet1
